Cogmind - Beta 16 @@@ ROGUE MODE // 2025.12.16 @ 02:28:16 Player: Selene Result: Escaped! Performance ------------- Evolutions (9) 4500 Regions Visited (29) 5800 Robots Destroyed (367) 1835 Value Destroyed (15306) 15306 Prototype IDs (79) 1580 Alien Tech Used (0) 0 Bonus (15974) 15974 TOTAL SCORE: 44995 Bonus ------- High Alert Combat Kills 2033 Follower Combat Kills 2455 Entered Garrisons 600 Aligned with FarCom 300 Met Imprinter 300 Acquired ECA 300 Met Warlord at Base 500 MAIN.C Attacked Warlord 500 Warlord Defense Kills 2330 Built Enhanced Grunts 300 Met R17 at Cetus 500 Met R17 at Research 2000 Met Warlord at Research 2000 Win 3000 Friendly Fire -1144 Cogmind --------- Core Integrity 1389/1600 Matter 0/300 Energy 214/220 System Corruption 6% Temperature Cool (15) Movement Flying (29) Location To Epsilon Eridani Parts ------- > --- POWER (2) -------- Light Antimatter Reactor Micro Antimatter Reactor > --- PROPULSION (8) --- Impulse Thruster Cooled Field Propulsion Drive Cooled Field Propulsion Drive Cooled Field Propulsion Drive Impulse Thruster Array > --- UTILITY (9) ------ Experimental Heat Sink Large Storage Unit Advanced Gravity Neutralizer Experimental Targeting Computer Advanced Target Analyzer Experimental Core Analyzer Advanced Recoil Stabilizer Centrium Light Armor Plating Advanced Hacking Suite > --- WEAPON (6) ------- Railgun Hypervelocity Railgun Helical Railgun > --- INVENTORY (15) --- Improved Quantum Reactor Cooled Field Propulsion Drive Field Propulsion Array Experimental Power Amplifier Advanced Weapon Cycler Advanced Transmission Jammer Experimental Reaction Control System Improved Propulsion Shielding Centrium Light Armor Plating Advanced Point Defense System Helical Railgun Helical Railgun Helical Railgun Ragnarok Missile Launcher Peak State ------------ > --- POWER ------------ Light Antimatter Reactor Micro Antimatter Reactor > --- PROPULSION ------- Cooled Field Propulsion Drive Cooled Field Propulsion Drive Field Propulsion Array Field Propulsion Array Impulse Thruster Array > --- UTILITY ---------- Experimental Heat Sink Large Storage Unit Advanced Gravity Neutralizer Experimental Targeting Computer Advanced Target Analyzer Experimental Core Analyzer Advanced Recoil Stabilizer Centrium Light Armor Plating Advanced Hacking Suite > --- WEAPON ----------- Railgun Hypervelocity Railgun Helical Railgun Helical Railgun Helical Railgun Ragnarok Missile Launcher > --- INVENTORY -------- Mini Fusion Reactor Improved Quantum Reactor Impulse Thruster Cooled Field Propulsion Drive Cooled Field Propulsion Drive Experimental Power Amplifier Experimental Targeting Computer Advanced Weapon Cycler Advanced Transmission Jammer Experimental Reaction Control System Improved Propulsion Shielding Centrium Light Armor Plating Advanced Point Defense System Helical Railgun [Rating: 198] Favorites ----------- Power Light Nuclear Core Engine Light Angular Momentum Engine Power Core Light Nuclear Core Reactor Quantum Reactor Propulsion Light Treads Treads Light Treads Leg Enhanced Flexi-carbon Leg Wheel Wheel Flight Unit Field Propulsion Array Utility Layered Medium Armor Plating Device Improved Heat Sink Storage Huge Storage Unit Processor Core Analyzer Hackware Advanced Hacking Suite Protection Layered Medium Armor Plating Weapon Minigun Energy Gun Precision Beam Rifle Energy Cannon Cooled Plasma Cannon Ballistic Gun Minigun Ballistic Cannon Mini Assault Cannon Launcher Precision Rocket Launcher Impact Weapon Heavy Flail Slashing Weapon Ionic Axe Piercing Weapon Makeshift Spear Build | -11 -10 -10 -10 -9 -8 -8 -8 -8 -7 -7 -7 -7 -7 -7 -6 -6 -6 -6 -6 -6 -5 -5 -5 -5 -4 -4 -3 -2 -1 ------- Run | Yrd Mat Min Exi Min Mat Gar Mat Gar Fac Gar Fac Low Low Zio Pro Fac Ext Cet Arc Hub Fac Upp Upp War Pro Fac Res Res Acc Slots Evolved 18 | . . . . . 4 . . . 2 . . . . . . 2 . . . . 2 . . . . 2 2 2 2 Power 1 | . . . . . . . . . . . . . . . . 1 . . . . . . . . . . . . . Propulsion 6 | . . . . . 1 . . . 1 . . . . . . 1 . . . . 1 . . . . . 1 . 1 Utility 7 | . . . . . 1 . . . 1 . . . . . . . . . . . . . . . . 2 1 2 . Weapon 4 | . . . . . 2 . . . . . . . . . . . . . . . 1 . . . . . . . 1 Parts Attached 283 | 6 6 . 2 5 23 9 5 8 22 2 3 2 7 . . 16 7 11 6 7 15 2 2 36 2 22 18 29 10 Power 42 | 1 1 . . 1 2 . 1 3 1 1 . . 2 . . 3 1 2 1 . 2 . . 8 . 1 4 4 3 Engine 12 | 1 1 . . 1 1 . . . . . . . 1 . . . 1 1 . . 1 . . 1 . . 2 1 . Core 15 | . . . . . 1 . 1 3 1 1 . . 1 . . 1 . . 1 . 1 . . 4 . . . . . Reactor 15 | . . . . . . . . . . . . . . . . 2 . 1 . . . . . 3 . 1 2 3 3 Propulsion 62 | 2 3 . . . 3 3 3 2 1 . . . . . . 3 6 2 . 2 5 . . 6 2 5 7 3 4 Treads 23 | . 3 . . . 3 3 2 2 . . . . . . . . 5 2 . 1 2 . . . . . . . . Leg 1 | . . . . . . . . . . . . . . . . . . . . . 1 . . . . . . . . Wheel 2 | 2 . . . . . . . . . . . . . . . . . . . . . . . . . . . . . Hover . | . . . . . . . . . . . . . . . . . . . . . . . . . . . . . . Flight 36 | . . . . . . . 1 . 1 . . . . . . 3 1 . . 1 2 . . 6 2 5 7 3 4 Utility 105 | 2 1 . 1 3 4 3 1 . 13 . 1 2 3 . . 4 . 3 4 3 7 1 2 13 . 13 5 14 2 Device 46 | 1 . . . 1 3 2 . . 4 . 1 . 2 . . 2 . . 4 1 4 . . 5 . 7 2 7 . Storage 14 | 1 1 . 1 1 . . . . 3 . . . . . . 1 . . . 2 . . 1 1 . 1 . 1 . Processor 19 | . . . . . . . . . 3 . . . . . . . . 1 . . 1 . 1 3 . 2 2 5 1 Hackware 6 | . . . . . . . 1 . 1 . . . . . . . . . . . 1 . . . . 2 . . 1 Protection 20 | . . . . 1 1 1 . . 2 . . 2 1 . . 1 . 2 . . 1 1 . 4 . 1 1 1 . Artifact . | . . . . . . . . . . . . . . . . . . . . . . . . . . . . . . Weapon 74 | 1 1 . 1 1 14 3 . 3 7 1 2 . 2 . . 6 . 4 1 2 1 1 . 9 . 3 2 8 1 Energy Gun 15 | . . . . . 6 . . . 1 . 2 . 1 . . . . 1 . . . . . 2 . 1 . 1 . Energy Cannon 2 | . . . . . . . . . . . . . . . . 1 . . . 1 . . . . . . . . . Ballistic Gun 42 | 1 1 . 1 1 8 1 . 1 4 1 . . 1 . . 3 . 3 1 1 1 . . 5 . . 2 5 1 Ballistic Cannon 1 | . . . . . . . . . . . . . . . . 1 . . . . . . . . . . . . . Launcher 7 | . . . . . . 1 . 1 1 . . . . . . 1 . . . . . . . 1 . . . 2 . Special Weapon . | . . . . . . . . . . . . . . . . . . . . . . . . . . . . . . Impact Weapon 2 | . . . . . . . . 1 1 . . . . . . . . . . . . . . . . . . . . Slashing Weapon 3 | . . . . . . 1 . . . . . . . . . . . . . . . . . . . 2 . . . Piercing Weapon 2 | . . . . . . . . . . . . . . . . . . . . . . 1 . 1 . . . . . Special Melee Weapon . | . . . . . . . . . . . . . . . . . . . . . . . . . . . . . . Unidentified Prototypes 55 | . 1 . . . 5 . 1 . 1 . 2 . 1 . . 6 . 4 . 3 2 . . 14 . 3 3 8 1 Corrupted Parts 7 | . . . . . . . . . . . . . . . . . 2 4 . . . . . . . . 1 . . System Corruption 35 | . . . . . . . . . . . . . . . . . 11 16 . . . . . . . . 8 . . Parts Lost 35 | . 1 . . . . 2 . 4 2 2 . . 1 . . . 2 1 . . 4 . 1 8 4 1 1 . 1 Power 10 | . 1 . . . . . . 1 1 1 . . 1 . . . 1 . . . 1 . . 2 1 . . . . Propulsion 9 | . . . . . . . . . . . . . . . . . 1 . . . 1 . 1 2 2 1 . . 1 Utility 3 | . . . . . . . . . 1 . . . . . . . . . . . . . . 1 . . 1 . . Weapon 13 | . . . . . . 2 . 3 . 1 . . . . . . . 1 . . 2 . . 3 1 . . . . Highest Loss Streak 4 | . 1 . . . . 1 . 2 1 1 . . 1 . . . 2 1 . . 3 . 1 3 4 1 1 . 1 To Critical Strikes . | . . . . . . . . . . . . . . . . . . . . . . . . . . . . . . Average Backups 14 | 3 12 15 14 16 20 21 22 21 8 9 9 10 10 10 10 9 9 9 10 12 13 4 4 4 4 4 4 10 14 Power . | . . . 1 1 1 1 1 . . . . . . . . . . . . . . . . . . . . . 1 Propulsion 4 | 1 4 5 4 5 5 6 7 6 3 4 4 4 4 4 4 3 3 3 2 4 6 . . . . 1 1 2 2 Utility 3 | . 2 4 4 5 5 5 4 3 1 3 3 2 2 4 4 4 2 2 3 3 3 1 1 1 3 2 2 4 7 Weapon 4 | 1 5 5 4 4 8 9 8 10 3 2 2 2 2 1 1 1 3 3 4 4 2 3 3 1 . . . 2 2 Tool/Special . | . . . . . . . . . . . . . . . . . . . . . . . . . . . . . . Unused Backups 73 | . 4 1 . 6 12 2 4 . 10 . 2 1 . . . 4 . . . . 3 1 . 1 . 1 4 10 7 Power 6 | . . . . . 2 1 1 . . . . . . . . . . . . . . . . . . . . 1 1 Propulsion 20 | . . . . 3 3 . 1 . 3 . . . . . . 1 . . . . 2 . . 1 . . 1 2 3 Utility 28 | . 1 . . 2 2 1 2 . 3 . 2 1 . . . 2 . . . . 1 . . . . 1 2 5 3 Weapon 19 | . 3 1 . 1 5 . . . 4 . . . . . . 1 . . . . . 1 . . . . 1 2 . Tool/Special . | . . . . . . . . . . . . . . . . . . . . . . . . . . . . . . Average Slot Usage (%) 89 | . 99 100 100 100 99 100 99 99 75 75 76 76 75 76 76 77 89 89 85 85 84 70 72 86 82 80 89 82 82 Engine 3 | . 14 14 14 14 3 . . . . . . . 3 7 7 4 3 2 . . . 5 5 3 5 . 3 1 . Core 4 | . . . . . 5 9 9 8 6 6 7 7 3 . . 3 2 . . 6 4 . . 6 2 . . . . Reactor 1 | . . . . . . . . . . . . . . . . 1 5 10 12 6 4 . . . . 4 4 4 7 Treads 15 | . 25 28 28 28 27 27 26 26 . . . . . . . . 16 23 20 20 20 . . . . . . . . Flight 6 | . . . . . . . . . 6 7 7 7 7 7 7 12 7 . . . 1 29 27 33 33 27 26 19 19 Device 8 | . 14 14 14 10 8 9 5 8 9 7 7 7 6 7 7 6 6 1 9 5 2 10 9 3 5 5 8 18 13 Storage 7 | . 14 14 14 14 9 9 9 9 5 7 7 7 7 7 7 6 6 6 6 6 4 . . . . . . 2 4 Processor 4 | . . . . . . . . . 5 7 7 7 7 7 7 6 6 11 6 6 5 5 6 11 11 14 9 7 9 Protection 6 | . . . . 3 9 9 9 9 7 7 7 7 7 7 7 6 5 6 1 6 5 5 4 4 5 7 9 7 4 Energy Gun 2 | . . . . . 6 6 . . . . . . 2 7 7 5 5 . . . . . . . . 3 3 . . Ballistic Gun 22 | . 27 28 28 28 29 26 36 27 22 22 22 23 20 15 15 13 19 24 26 26 21 11 11 16 13 4 4 14 19 Impact Weapon 2 | . . . . . . . . 8 6 6 6 6 7 7 7 5 . . . . . . . . . . . . . Peak Build Rating 198 | 6 11 11 14 18 36 40 45 43 70 65 66 65 72 69 72 87 85 110 110 114 128 70 70 114 83 112 140 171 198 Average Rating 67 | 4 10 11 13 16 31 37 41 41 66 64 63 62 66 69 70 78 73 97 106 111 120 66 66 88 73 93 126 154 183 On Entrance 64 | . 6 11 11 14 16 36 39 42 39 65 63 63 63 69 69 69 83 68 109 110 113 72 70 60 83 72 110 126 171 Avg Prop Armor Cover (%) 3 | . . . . . . . . . . . . . . . . . 2 . . 4 8 . . . . . . . . Naked Turns . | . . . . . . . . . . . . . . . . . . . . . . . . . . . . . . Heaviest Build 110 | 11 31 31 51 91 108 110 110 108 105 40 42 42 47 46 47 57 67 74 76 85 94 27 27 42 34 43 61 74 85 Greatest Support 217 | 26 40 40 40 40 60 60 62 65 65 50 50 50 50 50 50 55 140 190 190 190 217 33 27 39 34 45 58 74 88 Greatest Overweight (x) 2 | . 1 . 1 2 1 1 1 1 1 . . . . . . 1 1 . . . 1 . . 1 . 1 1 1 1 Average Overweight (x) . | . . . . 1 1 1 1 1 . . . . . . . . . . . . . . . . . . . . . Largest Inventory Capacity 25 | 8 15 15 20 25 25 25 25 25 25 10 10 10 10 10 10 10 10 10 10 15 15 5 5 5 5 5 5 15 15 Average Capacity 15 | 7 13 15 18 20 24 25 25 25 8 10 10 10 10 10 10 10 10 10 10 12 14 5 5 5 5 5 5 10 15 Most Carried 25 | 6 15 15 19 20 25 25 25 25 25 10 10 10 10 10 10 10 10 10 10 15 15 5 5 5 5 5 5 15 15 Average Carried 15 | 3 12 14 16 19 23 24 24 24 8 9 9 9 9 10 10 9 9 9 10 12 13 4 4 4 4 4 4 10 14 Final Capacity 25 | 8 15 15 20 20 25 25 25 25 10 10 10 10 10 10 10 10 10 10 10 15 5 5 5 5 5 5 5 15 15 Final Carried 25 | 6 15 15 19 20 25 25 25 25 10 9 10 10 10 10 10 10 10 10 10 15 5 5 5 5 5 5 5 15 15 Class Distribution -------------------- 31% | Scavenger-Skirmisher 14% | Skirmisher 14% | Scavenger-Sprinter 12% | Mutant 11% | Scavenger-Tank 6% | Gunner Dominant Class ---------------- Mutant | -10/Materials Mutant | -10/Mines Mutant | -10/Exiles Scavenger-Skirmisher | -9/Mines Skirmisher | -8/Materials Scavenger-Skirmisher | -8/Garrison Scavenger-Skirmisher | -8/Materials Scavenger-Skirmisher | -8/Garrison Skirmisher | -7/Factory Skirmisher | -7/Garrison Scavenger-Skirmisher | -7/Factory Scavenger-Gunner | -7/Lower Caves Gunner | -7/Lower Caves Gunner | -7/Zion Gunner | -6/Proximity Caves Skirmisher | -6/Factory Scavenger-Skirmisher | -6/Extension Scavenger-Tank | -6/Cetus Scavenger-Tank | -6/Archives Scavenger-Tank | -6/Hub_04(d) Scavenger-Tank | -5/Factory Sprinter | -5/Upper Caves Sprinter | -5/Upper Caves Scavenger-Sprinter | -5/Warlord Scavenger-Sprinter | -4/Proximity Caves Scavenger-Sprinter | -4/Factory Scavenger-Sprinter | -3/Research Scavenger-Sprinter | -2/Research Scavenger-Sprinter | -1/Access Resources | -11 -10 -10 -10 -9 -8 -8 -8 -8 -7 -7 -7 -7 -7 -7 -6 -6 -6 -6 -6 -6 -5 -5 -5 -5 -4 -4 -3 -2 -1 ----------- Run | Yrd Mat Min Exi Min Mat Gar Mat Gar Fac Gar Fac Low Low Zio Pro Fac Ext Cet Arc Hub Fac Upp Upp War Pro Fac Res Res Acc Matter Collected 16537 | 278 197 112 30 84 808 1372 228 1679 1038 291 289 452 327 . 82 424 811 377 597 496 856 113 132 1731 27 364 516 1372 1454 Remotely 2711 | . . . . . . 506 140 739 746 291 289 . . . . . . . . . . . . . . . . . . Salvage Created 16184 | 26 415 31 . 34 1222 1109 276 1389 1013 250 294 223 417 . 108 846 950 159 318 576 1506 . 115 1023 38 359 308 1209 1970 Parts 845 | 4 21 5 . 3 69 76 10 70 69 17 18 14 16 . 3 29 44 5 23 37 75 . 3 51 8 20 18 47 90 Haulers Intercepted 28 | . 2 . . . 3 . 2 . 5 . 1 . 1 . . 2 . . . 2 1 . . . . . 1 4 4 Recyclers Shooed 13 | . 2 . . . 1 . 1 . . . . . . . . 1 1 . . . 6 . . . . 1 . . . Parts Field Recycled . | . . . . . . . . . . . . . . . . . . . . . . . . . . . . . . Retrieved Matter . | . . . . . . . . . . . . . . . . . . . . . . . . . . . . . . Parts Self-Destructed 53 | . . . . . . . . . . . . 14 13 . 16 . . . . . . 2 3 . 5 . . . . Prevented 1 | . . . . . . . . . . . . . . . . . . . . . . 1 . . . . . . . Parts Restored . | . . . . . . . . . . . . . . . . . . . . . . . . . . . . . . Kills | -11 -10 -10 -10 -9 -8 -8 -8 -8 -7 -7 -7 -7 -7 -7 -6 -6 -6 -6 -6 -6 -5 -5 -5 -5 -4 -4 -3 -2 -1 ------- Run | Yrd Mat Min Exi Min Mat Gar Mat Gar Fac Gar Fac Low Low Zio Pro Fac Ext Cet Arc Hub Fac Upp Upp War Pro Fac Res Res Acc Combat Hostiles Destroyed 235 | . 9 2 . 2 20 28 3 28 14 12 . 6 6 . 2 . 15 2 . 2 18 . 2 25 4 5 . 12 18 Guns 188 | . 9 2 . 2 20 21 3 28 7 6 . 6 6 . 2 . 15 2 . 2 18 . 2 11 1 . . 12 13 AOE 47 | . . . . . . 7 . . 7 6 . . . . . . . . . . . . . 14 3 5 . . 5 Classes Destroyed 25 | 1 4 . . . 6 3 . . 2 . . 1 . . . . 1 . . . 1 . . 6 . . . . . Worker 25 | . . . . . 2 . . . 5 . 2 . . . . 4 . . . 2 . . . . . 1 4 . 5 Builder 8 | . . . . . 1 . . . 1 . . . . . . . . . . 2 2 . . . . 1 . . 1 Tunneler 4 | 1 . . . . 1 . . . . . . . . . . 1 . . . . . . . . . . 1 . . Hauler 28 | . 2 . . . 3 . 2 . 5 . 1 . 1 . . 2 . . . 2 1 . . . . . 1 4 4 Recycler 14 | . . . . . . . . . 2 . 2 . . . . 3 1 . . 1 1 . . . . 2 1 . 1 Minesweeper 1 | . . . . . . . . . . . . 1 . . . . . . . . . . . . . . . . . Mechanic 2 | . . . . . . . . . 1 . 1 . . . . . . . . . . . . . . . . . . Operator 17 | . . . . . 1 . . . 2 . . . . . . 1 1 . 9 2 1 . . . . . . . . Watcher 27 | . 3 . . . 4 . 1 1 5 . 1 . . . . 2 2 . . . 1 . . . . . . 1 6 Swarmer 76 | . 6 2 . 2 3 8 . 3 9 8 . 4 . . . . 7 . . . . . . 7 4 4 . 4 5 Saboteur 6 | . . . . . . . . . . . . . . . . . . . . . . . . 6 . . . . . Grunt 78 | . 3 . . . 10 10 3 18 1 4 . . 5 . . . 3 . . . 9 . 2 5 . . . 1 4 Brawler 5 | . . . . . . 2 . . 1 . . . . . 1 . . . . . 1 . . . . . . . . Duelist 1 | . . . . . 1 . . . . . . . . . . . . . . . . . . . . . . . . Protector 2 | . . . . . . . . . . . . . . . . . . . . . . . . 2 . . . . . Sentry 19 | . . . . . 5 3 . 2 . . . . . . . . 3 . . 1 2 . . . . . . 3 . Demolisher 1 | . . . . . . . . . . . . . . . . . . . . . . . . 1 . . . . . Specialist 1 | . . . . . . 1 . . . . . . . . . . . . . . . . . . . . . . . Hunter 7 | . . . . . 1 2 . . . . . . . . . . . . . . 1 . . . . . . 1 2 Programmer 29 | . . . . . . 2 . 6 3 . . 2 1 . 1 . . . . 1 4 . . 1 . 1 . . 7 Heavy 1 | . . . . . . . . . . . . . . . . . . . . . 1 . . . . . . . . Behemoth 1 | . . . . . . . . . . . . . . . . . 1 . . . . . . . . . . . . Cetus Guard 2 | . . . . . . . . . . . . . . . . . . 2 . . . . . . . . . . . Striker 4 | . . . . . . . . . . . . . . . . . . . . . . . . 1 . . . 3 . Executioner 2 | . . . . . . . . . . . . . . . . . . . . . . . . 2 . . . . . Thug 3 | . . . . . . . . . . . . . . . . . . . . . . . . 2 . . . 1 . Savage 1 | . . . . . . . . . . . . . . . . . 1 . . . . . . . . . . . . Butcher 1 | . . . . . . . . . . . . . . . . . . . . . . . . 1 . . . . . Mutant 1 | . . . . . . . . . . . . . . . . . . . . . . . . 1 . . . . . Best Kill Streak 10 | 1 3 2 . 2 4 5 3 4 8 4 2 4 3 . 2 4 5 2 3 5 6 . 2 10 3 7 2 6 6 Combat Bots Only 10 | . 3 2 . 2 4 5 3 4 5 4 . 4 3 . 2 . 4 2 . 1 4 . 2 10 3 5 . 6 5 Max Kills in Single Turn 4 | 1 1 1 . 1 2 4 1 2 3 2 1 1 1 . 1 1 3 1 1 2 1 . 1 4 2 4 1 2 3 Gunslinging 2 | . . . . . 1 1 . . . . . . . . . . 2 . . . . . . . . . . 1 . Exploded 4 | . . . . . . 4 . . 2 2 . . . . . . . . . . . . . 4 2 3 . . 2 Melee . | . . . . . . . . . . . . . . . . . . . . . . . . . . . . . . Uniques/NPCs Destroyed . | . . . . . . . . . . . . . . . . . . . . . . . . . . . . . . Combat | -11 -10 -10 -10 -9 -8 -8 -8 -8 -7 -7 -7 -7 -7 -7 -6 -6 -6 -6 -6 -6 -5 -5 -5 -5 -4 -4 -3 -2 -1 -------- Run | Yrd Mat Min Exi Min Mat Gar Mat Gar Fac Gar Fac Low Low Zio Pro Fac Ext Cet Arc Hub Fac Upp Upp War Pro Fac Res Res Acc Hostile Shots Fired 1150 | . 22 3 . 2 63 96 13 89 88 35 . 30 28 . 13 9 166 21 11 25 149 14 8 80 30 11 . 19 125 Missed 414 | . 4 1 . 1 18 30 5 23 34 13 . 15 9 . 7 5 77 6 3 8 34 7 3 33 11 2 . 12 53 Hits 736 | . 18 2 . 1 45 66 8 66 54 22 . 15 19 . 6 4 89 15 8 17 115 7 5 47 19 9 . 7 72 Melee 1 | . . . . . . . . . 1 . . . . . . . . . . . . . . . . . . . . Projectile 735 | . 18 2 . 1 45 66 8 66 53 22 . 15 19 . 6 4 89 15 8 17 115 7 5 47 19 9 . 7 72 AOE 4 | . . . . . . . . . . . . . . . . . . . . . . . . 4 . . . . . Critical Strikes 31 | . . . . . 4 1 . 5 1 . . 1 1 . 1 . . 2 . . 9 1 . . . 1 . . 4 Damage Taken 13022 | . 188 16 . 8 653 1091 125 1099 814 443 . 226 305 . 105 36 602 458 198 341 2453 129 95 1332 275 162 33 250 1585 Core 1256 | . 20 . . . 44 150 18 216 50 15 . 30 . . . . 59 27 . 23 103 55 19 168 38 . . 10 211 Absorbed by Shields 258 | . . . . . . . . . . . . . . . . . 133 . . . . . . 125 . . . . . Reduced by Siege Mode 54 | . . . . . . . . . . . . . . . . . . . . . 54 . . . . . . . . Redirected to Shielding 31 | . . . . . . . . . . . . . . . . . . . . . . . . . . . . 17 14 Regen/Repaired (Parts) 985 | . 54 . . . 234 . . . 362 . . . . 5 . . . . . . . . . 111 . 88 . . 131 Core Remaining (%) 83 | 100 . . . 92 . . . 22 . . . . . . 86 . . . . 87 . . . . 61 100 100 99 86 Volleys Fired 856 | 6 26 3 . 4 56 84 13 105 64 33 10 26 18 . 9 22 43 13 35 13 59 . 13 58 8 9 7 55 64 Largest 5 | 1 2 2 . 2 4 4 4 4 4 3 3 3 3 . 3 4 4 4 4 4 4 . 2 4 3 2 2 5 5 Hottest 189 | 20 43 43 . 46 139 142 106 106 113 78 76 76 119 . 119 146 146 146 138 138 138 . 63 121 81 111 111 189 189 Shots Fired 2511 | 6 51 6 . 8 218 232 52 292 165 65 29 78 52 . 27 63 138 49 138 53 190 . 19 143 17 17 11 163 229 Gun 2429 | 6 51 6 . 8 218 206 52 292 157 59 29 78 52 . 27 61 135 46 138 53 184 . 19 132 14 15 10 161 220 Cannon 13 | . . . . . . . . . . . . . . . . 2 1 3 . . 6 . . 1 . . . . . Launcher 69 | . . . . . . 26 . . 8 6 . . . . . . 2 . . . . . . 10 3 2 1 2 9 Special . | . . . . . . . . . . . . . . . . . . . . . . . . . . . . . . Kinetic 2277 | 6 51 6 . 8 177 169 52 292 157 59 29 78 49 . 18 41 101 48 138 53 184 . 19 132 14 9 6 161 220 Thermal 165 | . . . . . 41 37 . . . . . . 3 . 9 22 35 1 . . 6 . . 1 . 6 4 . . Explosive 69 | . . . . . . 26 . . 8 6 . . . . . . 2 . . . . . . 10 3 2 1 2 9 Electromagnetic . | . . . . . . . . . . . . . . . . . . . . . . . . . . . . . . Robot Hit Streak 26 | 4 12 1 . 8 26 23 14 13 17 7 5 6 7 . 7 15 17 8 5 20 24 . 17 22 2 2 11 20 10 Robot Miss Streak 10 | 1 4 2 . . 3 4 4 10 5 6 4 6 3 . 4 2 4 6 6 2 6 . . 3 4 3 . 4 4 Penetration Max 2 | . . . . . . . . 1 1 1 . 1 1 . . . 1 1 1 1 1 . 1 1 . . . 2 2 Secondary Targets 30 | . . . . . 4 3 2 5 . 1 . . . . . . 3 2 . . 3 . 1 2 . . . 1 3 Max Gunslinging Chain 2 | . . . . . 1 1 1 1 . 1 . . . . . . 2 1 . . 1 . 1 1 . . . 1 1 Shots Hit Robots 1448 | 5 34 2 . 7 138 122 31 176 82 21 15 35 31 . 16 39 89 31 61 34 119 . 12 94 6 6 20 92 130 Core Hits 702 | 1 18 3 . 3 59 47 10 60 56 21 7 13 15 . 3 21 45 16 27 20 49 . 3 74 6 10 8 35 72 Critical Kills 50 | . . . . . 1 . . 1 . 1 1 . . . . 2 2 1 1 2 7 . 1 4 . . . 11 15 Critical Parts Destroyed 82 | . . . . . . 2 . 3 1 1 1 1 . . . . 2 1 5 3 19 . . 4 . 1 1 15 22 Critical Strikes 148 | . . . . . 3 7 . 4 1 2 2 1 . . 1 6 6 3 6 5 27 . 1 8 . 1 1 26 37 Burn 15 | . . . . . 2 5 . . . . . . . . 1 4 2 1 . . . . . . . . . . . Destroy 132 | . . . . . 1 2 . 4 1 2 1 1 . . . 2 4 2 6 5 27 . 1 8 . 1 1 26 37 Smash 1 | . . . . . . . . . . . 1 . . . . . . . . . . . . . . . . . . Melee Attacks 191 | . . . . . . 11 . 38 14 66 16 . 1 3 1 12 . . . . . . 1 . . 10 18 . . Impact 151 | . . . . . . . . 38 14 66 16 . 1 3 1 12 . . . . . . . . . . . . . Slashing 39 | . . . . . . 11 . . . . . . . . . . . . . . . . . . . 10 18 . . Piercing 1 | . . . . . . . . . . . . . . . . . . . . . . . 1 . . . . . . Sneak Attacks 10 | . . . . . . . . . . . 2 . . . . 1 . . . . . . . . . . 7 . . Combat Hostiles . | . . . . . . . . . . . . . . . . . . . . . . . . . . . . . . Follow-up Attacks . | . . . . . . . . . . . . . . . . . . . . . . . . . . . . . . Damage Inflicted 39325 | 66 474 49 . 101 2269 2396 533 3326 3005 1041 453 690 597 . 333 824 1907 950 1810 1041 3692 . 309 4379 369 666 1266 2243 4536 Guns 31919 | 66 464 25 . 101 2255 2051 530 3326 1764 421 243 690 597 . 333 725 1907 890 1810 974 3669 . 309 2821 86 130 188 2243 3301 Cannons 60 | . . . . . . . . . . . . . . . . . . 60 . . . . . . . . . . . Explosions 5818 | . . . . . . 345 . . 1241 620 . . . . . . . . . . . . . 1558 283 536 . . 1235 Melee 1387 | . . . . . . . . . . . 210 . . . . 99 . . . . . . . . . . 1078 . . Ramming 141 | . 10 24 . . 14 . 3 . . . . . . . . . . . . 67 23 . . . . . . . . Kinetic 29796 | 66 464 25 . 101 1724 1520 530 3326 1764 421 243 690 554 . 219 418 1434 934 1810 974 3669 . 309 2821 86 76 74 2243 3301 Thermal 2269 | . . . . . 531 531 . . . . . . 43 . 114 307 473 16 . . . . . . . 140 114 . . Explosive 5720 | . . . . . . 345 . . 1229 620 . . . . . . . . . . . . . 1558 283 450 . . 1235 Electromagnetic 12 | . . . . . . . . . 12 . . . . . . . . . . . . . . . . . . . . Impact 309 | . . . . . . . . . . . 210 . . . . 99 . . . . . . . . . . . . . Slashing 1078 | . . . . . . . . . . . . . . . . . . . . . . . . . . . 1078 . . Piercing . | . . . . . . . . . . . . . . . . . . . . . . . . . . . . . . Highest Corruption 29 | . . . . . . 1 3 8 3 3 3 4 5 5 . 1 13 29 29 4 5 5 5 10 10 9 10 . 6 Average Corruption 5 | . . . . . . 1 1 4 1 3 3 3 4 5 . 1 7 23 17 4 4 5 5 8 10 5 6 . 3 Corruption Purged 34 | . . . . . . . . . . . . . . . . . . . 25 . . . . . . 9 . . . Corruption Blocked . | . . . . . . . . . . . . . . . . . . . . . . . . . . . . . . Effects 307 | . . . . . . 1 12 69 5 12 8 11 7 . . 1 32 21 23 22 9 3 6 15 3 18 8 . 21 Message Errors 63 | . . . . . . . 2 14 1 2 1 1 2 . . . 5 7 4 7 2 . . 4 . 5 3 . 3 Matter Fused 84 | . . . . . . . 5 15 1 4 2 4 1 . . . 14 5 7 8 3 2 . 1 2 4 2 . 4 Heat Flow Errors 36 | . . . . . . . 3 9 . . 2 . 1 . . . 4 2 4 1 3 1 1 1 . 2 . . 2 Energy Discharges 35 | . . . . . . 1 . 7 1 3 1 1 1 . . 1 2 2 4 2 . . 1 . . 3 1 . 4 Parts Rejected 4 | . . . . . . . . 1 . . . . . . . . . . . . . . . 3 . . . . . Parts Fused 3 | . . . . . . . . 3 . . . . . . . . . . . . . . . . . . . . . Data Loss (minor) 29 | . . . . . . . 1 6 1 . . 2 1 . . . 4 2 2 2 . . 2 1 1 2 1 . 1 Data Loss (major) 12 | . . . . . . . 1 4 . 1 . 1 1 . . . 1 1 . 1 . . . . . . . . 1 Misfires 15 | . . . . . . . . 4 1 1 1 1 . . . . 1 . . 1 1 . . . . 2 . . 2 Alerts 9 | . . . . . . . . 4 . . 1 . . . . . 1 . . . . . 2 . . . . . 1 Weapon Failures 17 | . . . . . . . . 2 . 1 . 1 . . . . . 2 2 . . . . 5 . . 1 . 3 Overload Shots 2 | . . . . . . . . . . . . . . . . . 1 . . . . . . 1 . . . . . Overflow Damage 798 | . . . . . . 41 . . 62 24 115 . . . . 59 . . . . . . . 159 . 33 269 . 36 Projectiles . | . . . . . . . . . . . . . . . . . . . . . . . . . . . . . . Explosions 355 | . . . . . . 41 . . 62 24 . . . . . . . . . . . . . 159 . 33 . . 36 Melee 443 | . . . . . . . . . . . 115 . . . . 59 . . . . . . . . . . 269 . . Knockbacks 1 | . . . . . . . . . . . 1 . . . . . . . . . . . . . . . . . . Impact 1 | . . . . . . . . . . . 1 . . . . . . . . . . . . . . . . . . Kinetic . | . . . . . . . . . . . . . . . . . . . . . . . . . . . . . . Secondary . | . . . . . . . . . . . . . . . . . . . . . . . . . . . . . . Self-Inflicted Damage 208 | . . . . . . 147 . . . 27 . . . . . . . . . . . . . . . . . 34 . Shots 10 | . . . . . . 7 . . . 1 . . . . . . . . . . . . . . . . . 2 . Rammed 18 | . 6 3 . . 2 . 1 . . . . . . . . . . . . 5 1 . . . . . . . . Targets Rammed 19 | . 6 3 . . 2 . 1 . . . . . . . . . . . . 6 1 . . . . . . . . Kicked . | . . . . . . . . . . . . . . . . . . . . . . . . . . . . . . Crushed 1 | . . . . . . . . . . . . . . . . . . . . 1 . . . . . . . . . Highest Temperature 460 | . . . . . 425 405 279 271 234 162 226 360 333 . 299 264 379 273 256 243 347 232 225 329 . 351 160 388 460 Average Temperature 89 | . . . . . 50 101 86 66 60 43 77 126 87 . 149 90 132 100 76 71 112 108 65 107 . 101 52 100 88 Received Heat Transfer 2559 | . 66 . . . 234 315 72 396 168 72 . . 135 . 12 12 142 18 27 54 541 36 45 57 . 58 . 18 81 Effects 23 | . . . . . . 1 . 1 1 . . . 2 . . 1 3 1 . . 5 . . . . . . 3 5 Shutdowns 2 | . . . . . . 1 . . . . . . . . . . . . . . . . . . . . . . 1 Energy Bleed 4 | . . . . . . . . 1 1 . . . . . . . 1 . . . 1 . . . . . . . . Interference 16 | . . . . . . . . . . . . . 2 . . 1 2 1 . . 4 . . . . . . 3 3 Damage (minor) 1 | . . . . . . . . . . . . . . . . . . . . . . . . . . . . . 1 Siege Activations 3 | . . . . . . . . . . . . . . . . . . . . 1 2 . . . . . . . . Total Turns 43 | . . . . . . . . . . . . . . . . . . . . 21 22 . . . . . . . . Longest Duration 21 | . . . . . . . . . . . . . . . . . . . . 21 12 . . . . . . . . Martial Activations . | . . . . . . . . . . . . . . . . . . . . . . . . . . . . . . Shielding Activations . | . . . . . . . . . . . . . . . . . . . . . . . . . . . . . . Robots Disrupted . | . . . . . . . . . . . . . . . . . . . . . . . . . . . . . . Combat Hostiles . | . . . . . . . . . . . . . . . . . . . . . . . . . . . . . . Robots Corrupted . | . . . . . . . . . . . . . . . . . . . . . . . . . . . . . . Combat Hostiles . | . . . . . . . . . . . . . . . . . . . . . . . . . . . . . . Parts Fried 2 | . . . . . . . . . . . . . . . . 2 . . . . . . . . . . . . . Impact Corruptions 6 | . . . . . . . . . . . 4 . . . . 2 . . . . . . . . . . . . . Robots Melted . | . . . . . . . . . . . . . . . . . . . . . . . . . . . . . . Combat Hostiles . | . . . . . . . . . . . . . . . . . . . . . . . . . . . . . . Parts Melted 16 | . . . . . 3 4 . . . . . . . . . . 3 . . . . . . 6 . . . . . Heat Transferred 5674 | . . . . . 1295 1517 . . . . . . 74 . 296 962 1147 111 . . . . . . . 124 148 . . Parts Sabotaged . | . . . . . . . . . . . . . . . . . . . . . . . . . . . . . . Parts Stolen . | . . . . . . . . . . . . . . . . . . . . . . . . . . . . . . Parts Stripped . | . . . . . . . . . . . . . . . . . . . . . . . . . . . . . . Power Chain Reactions 2 | . . . . . . . . . 2 . . . . . . . . . . . . . . . . . . . . Alert | -11 -10 -10 -10 -9 -8 -8 -8 -8 -7 -7 -7 -7 -7 -7 -6 -6 -6 -6 -6 -6 -5 -5 -5 -5 -4 -4 -3 -2 -1 ------- Run | Yrd Mat Min Exi Min Mat Gar Mat Gar Fac Gar Fac Low Low Zio Pro Fac Ext Cet Arc Hub Fac Upp Upp War Pro Fac Res Res Acc Maximum Alert Level 5 | . . . . . 1 5 3 5 4 5 3 . . . . . 1 . 1 1 1 . . . . 1 . 1 3 Low Security (%) 47 | 100 100 100 . 100 84 9 . . . . . . . . . 100 35 100 50 89 79 . . . . 93 100 71 1 Level 1 14 | . . . . . 15 23 . . . . . . . . . . 64 . 49 10 20 . . . . 6 . 28 29 Level 2 7 | . . . . . . 12 37 22 . . . . . . . . . . . . . . . . . . . . 39 Level 3 13 | . . . . . . 27 62 15 45 8 100 . . . . . . . . . . . . . . . . . 29 Level 4 11 | . . . . . . 15 . 25 54 69 . . . . . . . . . . . . . . . . . . . Level 5 6 | . . . . . . 11 . 35 . 22 . . . . . . . . . . . . . . . . . . . High Security . | . . . . . . . . . . . . . . . . . . . . . . . . . . . . . . Max Security . | . . . . . . . . . . . . . . . . . . . . . . . . . . . . . . Peak Influence 2501 | 5 115 53 . 81 284 1965 965 2501 1342 1731 922 . . . . 63 277 127 247 248 294 . . . . 217 68 336 1002 Initial 1312 | . . 8 . . . 178 957 419 1312 951 908 . . . . 40 . 127 28 45 60 . . . . 69 . 20 199 Average 499 | . 28 8 . 11 64 819 804 1330 1141 1383 847 . . . . 16 204 64 194 138 118 . . . . 83 20 122 561 Influence Increases 14396 | 5 346 53 . 127 610 1807 164 2242 763 800 89 185 225 . 225 173 742 261 373 554 840 120 40 971 150 301 187 784 1259 Destroy 0b10 Robot/C 5800 | . 180 40 . 100 400 560 80 820 280 240 . 120 120 . 160 . 420 160 80 160 380 . 40 680 80 100 . 240 360 Destroy 0b10 Robot/NC 680 | 5 25 . . . 60 . 15 5 105 . 35 5 5 . . 65 30 10 45 50 40 . . 15 . 20 35 25 85 Destroy Leader 768 | . 50 10 . 10 114 20 26 30 70 10 4 30 10 . 10 8 56 . . 54 84 . . . 10 20 2 60 80 Allied During Kill 927 | . . 3 . 17 . . 2 101 . . . . . . 55 . 83 85 125 217 68 . . 171 . . . . . Successful Hack 642 | . 28 . . . 18 . 8 26 51 . 36 . . . . 42 42 . . 16 49 . . . . 77 84 16 149 Select Force Hacks 30 | . 30 . . . . . . . . . . . . . . . . . . . . . . . . . . . . Disable Machine 765 | . . . . . 15 30 30 60 105 120 . . . . . 30 45 . 90 30 105 . . . . 30 15 30 30 Anti-Garrison Action 2300 | . . . . . . 950 . 950 . 200 . . . . . . . . . . . . . . . . . 200 . Destroy Structure 1224 | . 3 . . . 3 142 3 175 62 215 14 . . . . 13 36 6 33 27 84 . . . . 24 36 108 240 Partial Spotted 105 | . . . . . . . . . 15 . . . . . . 15 . . . . . . . . . . 15 15 45 Lose Combat Pursuer 1155 | . 30 . . . . 105 . 75 75 15 . 30 90 . . . 30 . . . 30 120 . 105 60 30 . 90 270 Influence Decreases 13394 | 5 324 75 . 124 339 116 1484 386 1905 428 1045 438 260 487 160 238 514 418 313 560 692 162 145 492 645 411 150 489 589 Entered New Map 6031 | . . 14 . . 3 96 1008 226 1189 408 823 288 100 487 . 25 . 101 43 86 65 102 45 126 605 41 . 17 133 Time Decay 6182 | 5 314 61 . 124 336 . 326 . 546 . 222 150 150 . 80 209 494 167 270 374 510 60 90 236 30 360 150 472 446 Lost Part 300 | . 10 . . . . 20 . 40 20 20 . . 10 . . . 20 10 . . 40 . 10 70 10 10 . . 10 Lost Ally 581 | . . . . . . . . 120 . . . . . . 80 4 . 140 . 100 77 . . 60 . . . . . Purge Threat 300 | . . . . . . . 150 . 150 . . . . . . . . . . . . . . . . . . . . Squads Dispatched 69 | . 2 . . . 2 . 5 . 9 . 1 . . . 1 5 2 . . 7 12 . . . . 4 6 3 10 Investigation 23 | . 2 . . . . . 2 . 1 . . . . . . 2 2 . . 2 2 . . . . 2 3 3 2 Extermination 17 | . . . . . . . . . 4 . . . . . . 2 . . . 1 3 . . . . 2 . . 5 Reinforcement 18 | . . . . . 2 . 1 . 2 . . . . . . 1 . . . 4 4 . . . . . 3 . 1 Assault 7 | . . . . . . . 1 . 2 . 1 . . . 1 . . . . . . . . . . . . . 2 Garrison 4 | . . . . . . . 1 . . . . . . . . . . . . . 3 . . . . . . . . Intercept . | . . . . . . . . . . . . . . . . . . . . . . . . . . . . . . Searches Triggered . | . . . . . . . . . . . . . . . . . . . . . . . . . . . . . . Construction Impeded 2 | . . . . . . . . . . . . . . . . . . . . . 2 . . . . . . . . Haulers Reinforced 2 | . . . . . . . . . 1 . . . . . . . . . . 1 . . . . . . . . . Active Scanning Responses . | . . . . . . . . . . . . . . . . . . . . . . . . . . . . . . Cargo Convoy Interrupts . | . . . . . . . . . . . . . . . . . . . . . . . . . . . . . . Stealth | -11 -10 -10 -10 -9 -8 -8 -8 -8 -7 -7 -7 -7 -7 -7 -6 -6 -6 -6 -6 -6 -5 -5 -5 -5 -4 -4 -3 -2 -1 --------- Run | Yrd Mat Min Exi Min Mat Gar Mat Gar Fac Gar Fac Low Low Zio Pro Fac Ext Cet Arc Hub Fac Upp Upp War Pro Fac Res Res Acc Distress Signals 20 | . 1 1 . . 6 . . 1 1 . . . . . . . 1 1 . 3 1 . . . . . 1 2 1 Communications Jammed . | . . . . . . . . . . . . . . . . . . . . . . . . . . . . . . Distress Signals . | . . . . . . . . . . . . . . . . . . . . . . . . . . . . . . Times Spotted 517 | . 17 3 . 4 41 25 9 42 38 11 2 8 11 . 9 5 25 10 23 16 28 8 2 94 7 8 7 23 41 Peak Tracking Total 20 | . 4 3 . 3 5 7 5 4 10 4 1 4 5 . 8 2 4 5 1 3 6 5 1 20 4 4 3 4 12 Tactical Retreats 40 | . 2 . . . . 3 . 3 4 1 . 2 2 . . . 2 . . . 2 2 . 3 1 2 . 3 8 Traps | -11 -10 -10 -10 -9 -8 -8 -8 -8 -7 -7 -7 -7 -7 -7 -6 -6 -6 -6 -6 -6 -5 -5 -5 -5 -4 -4 -3 -2 -1 ------- Run | Yrd Mat Min Exi Min Mat Gar Mat Gar Fac Gar Fac Low Low Zio Pro Fac Ext Cet Arc Hub Fac Upp Upp War Pro Fac Res Res Acc Traps Triggered 33 | . 1 . . . . 13 . 4 4 5 . . . . . . 1 . . 1 2 . . . . 2 . . . Indirectly . | . . . . . . . . . . . . . . . . . . . . . . . . . . . . . . Trap Hack Attempts . | . . . . . . . . . . . . . . . . . . . . . . . . . . . . . . Triggered . | . . . . . . . . . . . . . . . . . . . . . . . . . . . . . . Disarmed . | . . . . . . . . . . . . . . . . . . . . . . . . . . . . . . Reprogrammed 1 | . . . . . . . . . . . . . . . . . 1 . . . . . . . . . . . . Reused . | . . . . . . . . . . . . . . . . . . . . . . . . . . . . . . Traps Extracted . | . . . . . . . . . . . . . . . . . . . . . . . . . . . . . . Installed 6 | . . . . . . . . . . . . 6 . . . . . . . . . . . . . . . . . Triggered . | . . . . . . . . . . . . . . . . . . . . . . . . . . . . . . Machines | -11 -10 -10 -10 -9 -8 -8 -8 -8 -7 -7 -7 -7 -7 -7 -6 -6 -6 -6 -6 -6 -5 -5 -5 -5 -4 -4 -3 -2 -1 ---------- Run | Yrd Mat Min Exi Min Mat Gar Mat Gar Fac Gar Fac Low Low Zio Pro Fac Ext Cet Arc Hub Fac Upp Upp War Pro Fac Res Res Acc Machines Disabled 70 | . . . . . 1 5 2 10 7 14 . . . . . 2 6 . 6 2 7 . . 1 . 2 1 2 2 Max in Single Turn 2 | . . . . . 1 1 1 2 2 2 . . . . . 1 1 . 1 1 2 . . 1 . 2 1 1 1 Garrison Access 10 | . . . . . . . . . 1 . . . . . . 1 . . . . . . . . . 1 3 2 2 Garrison Relay 8 | . . . . . . 2 . 4 . 2 . . . . . . . . . . . . . . . . . . . Phase Generator 2 | . . . . . . . . 1 . 1 . . . . . . . . . . . . . . . . . . . Machines Repaired . | . . . . . . . . . . . . . . . . . . . . . . . . . . . . . . Machines Dismantled . | . . . . . . . . . . . . . . . . . . . . . . . . . . . . . . Machines Sabotaged . | . . . . . . . . . . . . . . . . . . . . . . . . . . . . . . Overloaded Fab Kills . | . . . . . . . . . . . . . . . . . . . . . . . . . . . . . . Hacking | -11 -10 -10 -10 -9 -8 -8 -8 -8 -7 -7 -7 -7 -7 -7 -6 -6 -6 -6 -6 -6 -5 -5 -5 -5 -4 -4 -3 -2 -1 --------- Run | Yrd Mat Min Exi Min Mat Gar Mat Gar Fac Gar Fac Low Low Zio Pro Fac Ext Cet Arc Hub Fac Upp Upp War Pro Fac Res Res Acc Machines Accessed 146 | . 9 . 2 . 10 2 5 2 22 1 4 . . . . 16 9 1 . 4 5 . 1 1 . 16 14 4 18 Terminals 80 | . 7 . . . 6 2 3 2 8 1 3 . . . . 7 9 1 . 4 4 . . . . 8 6 . 9 Fabricators 8 | . . . . . . . . . 3 . . . . . . 2 . . . . . . . . . . 1 . 2 Repair Stations 10 | . 1 . . . 2 . . . 2 . 1 . . . . 1 . . . . . . . . . 1 1 . 1 Recycling Units 15 | . 1 . . . . . . . 3 . . . . . . 2 . . . . . . . . . 4 3 . 2 Scanalyzers 13 | . . . . . 1 . 1 . 3 . . . . . . 2 . . . . . . . . . 2 2 1 1 Garrison Access 16 | . . . . . 1 . 1 . 3 . . . . . . 2 . . . . 1 . . . . 1 1 3 3 Total Hacks 351 | . 29 . 2 . 29 5 15 4 48 2 10 . . . . 43 25 2 . 11 19 . 1 1 . 35 24 12 34 Successful 166 | . 20 . 2 . 14 . 9 2 22 . 6 . . . . 18 11 . . 2 10 . 1 1 . 24 7 3 14 Failed 183 | . 9 . . . 14 5 6 2 26 2 4 . . . . 25 14 2 . 9 9 . . . . 11 16 9 20 Catastrophic 34 | . . . . . . 3 2 1 6 . 1 . . . . 3 3 2 . . 3 . . . . 3 3 . 4 Database Lockouts 2 | . . . . . 1 . . . . . . . . . . . . . . . . . . . . . 1 . . Manual 182 | . 19 . 1 . 16 . 8 2 23 . 8 . . . . 28 9 1 . 11 16 . . . . 18 10 5 7 Terminals 213 | . 24 . . . 19 5 10 4 16 2 9 . . . . 23 25 2 . 11 17 . . . . 19 9 . 18 Fabricators 21 | . . . . . . . . . 9 . . . . . . 6 . . . . . . . . . . 3 . 3 Repair Stations 23 | . 3 . . . 7 . . . 4 . 1 . . . . 3 . . . . . . . . . 2 1 . 2 Recycling Units 31 | . 2 . . . . . . . 9 . . . . . . 2 . . . . . . . . . 8 6 . 4 Scanalyzers 31 | . . . . . 2 . 3 . 6 . . . . . . 5 . . . . . . . . . 5 4 4 2 Garrison Access 28 | . . . . . 1 . 2 . 4 . . . . . . 4 . . . . 2 . . . . 1 1 8 5 Terminal Hacks 43 | . 6 . 2 . 3 . 3 2 1 . 2 . . . . 1 8 . . . 3 . 1 1 . 4 1 . 5 Record 2 | . . . 1 . . . . . . . . . . . . . . . . . . . 1 . . . . . . Part Schematic 1 | . . . . . . . . . . . . . . . . . 1 . . . . . . . . . . . . Robot Analysis 6 | . 2 . . . . . 1 . . . . . . . . . 1 . . . 2 . . . . . . . . Prototype ID Bank 1 | . 1 . . . . . . . . . . . . . . . . . . . . . . . . . . . . Open Door 8 | . . . . . . . . . . . . . . . . . 4 . . . . . . 1 . . . . 3 Level Access Points 1 | . . . . . . . . . . . . . . . . . . . . . . . . . . . 1 . . Branch Access Points 4 | . . . . . . . 1 . . . 1 . . . . 1 . . . . . . . . . . . . 1 Emergency Access Points 1 | . . . . . . . . 1 . . . . . . . . . . . . . . . . . . . . . Terminal Index 2 | . . . . . 1 . . . . . . . . . . . . . . . . . . . . 1 . . . Scanalyzer Index 1 | . . . . . . . . . . . 1 . . . . . . . . . . . . . . . . . . Unreport Threat 2 | . . . . . . . 1 . 1 . . . . . . . . . . . . . . . . . . . . Locate Traps 8 | . 2 . . . 1 . . . . . . . . . . . 1 . . . 1 . . . . 2 . . 1 Reprogram Traps 1 | . . . . . . . . . . . . . . . . . 1 . . . . . . . . . . . . Hauler Manifests 3 | . 1 . . . 1 . . . . . . . . . . . . . . . . . . . . 1 . . . Patrol Navigation 1 | . . . . . . . . 1 . . . . . . . . . . . . . . . . . . . . . Proto ID Catalog 1 | . . . 1 . . . . . . . . . . . . . . . . . . . . . . . . . . Fabricator Hacks 5 | . . . . . . . . . 3 . . . . . . 1 . . . . . . . . . . . . 1 Network Status 4 | . . . . . . . . . 2 . . . . . . 1 . . . . . . . . . . . . 1 Build 1 | . . . . . . . . . 1 . . . . . . . . . . . . . . . . . . . . Repair Station Hacks 14 | . 2 . . . 6 . . . 4 . . . . . . . . . . . . . . . . . . . 2 Scan Component 7 | . 1 . . . 3 . . . 2 . . . . . . . . . . . . . . . . . . . 1 Repair 7 | . 1 . . . 3 . . . 2 . . . . . . . . . . . . . . . . . . . 1 Recycling Unit Hacks 9 | . 1 . . . . . . . 3 . . . . . . . . . . . . . . . . 4 1 . . Retrieve Components 9 | . 1 . . . . . . . 3 . . . . . . . . . . . . . . . . 4 1 . . Scanalyzer 17 | . . . . . 1 . 3 . 1 . . . . . . 3 . . . . . . . . . 5 1 2 1 Retrieve Study 17 | . . . . . 1 . 3 . 1 . . . . . . 3 . . . . . . . . . 5 1 2 1 Garrison Access Hacks 9 | . . . . . 1 . 1 . 2 . . . . . . 1 . . . . . . . . . 1 1 . 2 Unlock Access 3 | . . . . . 1 . 1 . 1 . . . . . . . . . . . . . . . . . . . . Seal Access 6 | . . . . . . . . . 1 . . . . . . 1 . . . . . . . . . 1 1 . 2 Unauthorized Hacks 69 | . 11 . . . 3 . 2 . 8 . 4 . . . . 12 3 . . 2 7 . . . . 10 3 1 3 Terminals 51 | . 9 . . . 3 . 1 . 2 . 4 . . . . 9 3 . . 2 6 . . . . 8 2 . 2 Assimilate 5 | . . . . . . . . . . . . . . . . 2 . . . 1 . . . . . . 2 . . Botnet 25 | . 2 . . . 3 . 1 . 2 . 3 . . . . 4 3 . . . 2 . . . . 3 . . 2 Operators 5 | . 2 . . . . . . . . . 1 . . . . 1 . . . . 1 . . . . . . . . Skim 15 | . 5 . . . . . . . . . . . . . . 2 . . . . 3 . . . . 5 . . . Sabotage 1 | . . . . . . . . . . . . . . . . . . . . 1 . . . . . . . . . Fabricators 7 | . . . . . . . . . 3 . . . . . . 3 . . . . . . . . . . . . 1 Report 2 | . . . . . . . . . 1 . . . . . . 1 . . . . . . . . . . . . . Liberate 3 | . . . . . . . . . 1 . . . . . . 1 . . . . . . . . . . . . 1 Haulers 2 | . . . . . . . . . 1 . . . . . . 1 . . . . . . . . . . . . . Repair Stations 2 | . 1 . . . . . . . . . . . . . . . . . . . . . . . . 1 . . . Mechanics 1 | . 1 . . . . . . . . . . . . . . . . . . . . . . . . . . . . Patch 1 | . . . . . . . . . . . . . . . . . . . . . . . . . . 1 . . . Recycling Units 6 | . 1 . . . . . . . 3 . . . . . . . . . . . . . . . . 1 1 . . Reject 4 | . . . . . . . . . 2 . . . . . . . . . . . . . . . . 1 1 . . Mask 1 | . . . . . . . . . 1 . . . . . . . . . . . . . . . . . . . . Tunnel 1 | . 1 . . . . . . . . . . . . . . . . . . . . . . . . . . . . Scanalyzers . | . . . . . . . . . . . . . . . . . . . . . . . . . . . . . . Garrison Access 3 | . . . . . . . 1 . . . . . . . . . . . . . 1 . . . . . . 1 . Reprogram 2 | . . . . . . . 1 . . . . . . . . . . . . . 1 . . . . . . . . Jam 1 | . . . . . . . . . . . . . . . . . . . . . . . . . . . . 1 . Data Cores Recovered 6 | . . . . . . . . . 2 . . . . . . 1 1 . . 1 1 . . . . . . . . Used 1 | . . . . . . . . . . . . . . . . 1 . . . . . . . . . . . . . Hacking Detections 130 | . 8 . . . 8 2 4 2 21 1 4 . . . . 15 7 1 . 4 5 . . . . 15 13 3 17 Full Trace Events 17 | . . . . . . 1 1 . 1 . . . . . . 2 2 . . 1 1 . . . . 1 3 2 2 Feedback Events 4 | . . . . . . . . . . . . . . . . 1 1 . . . . . . . . . 1 . 1 Corruption 4 | . . . . . . . . . . . . . . . . 1 1 . . . . . . . . . 1 . 1 Feedback Blocked . | . . . . . . . . . . . . . . . . . . . . . . . . . . . . . . Robot Schematics Acquired . | . . . . . . . . . . . . . . . . . . . . . . . . . . . . . . Robots Built . | . . . . . . . . . . . . . . . . . . . . . . . . . . . . . . Authchips . | . . . . . . . . . . . . . . . . . . . . . . . . . . . . . . Time . | . . . . . . . . . . . . . . . . . . . . . . . . . . . . . . Total Robot Build Rating . | . . . . . . . . . . . . . . . . . . . . . . . . . . . . . . Part Schematics Acquired 1 | . . . . . . . . . . . . . . . . . 1 . . . . . . . . . . . . Parts Built 2 | . . . . . . . . . 2 . . . . . . . . . . . . . . . . . . . . Authchips . | . . . . . . . . . . . . . . . . . . . . . . . . . . . . . . Time 95 | . . . . . . . . . 95 . . . . . . . . . . . . . . . . . . . . Total Part Build Rating 10 | . . . . . . . . . 10 . . . . . . . . . . . . . . . . . . . . Part Studies Acquired 16 | . . . . . 1 . 2 . 1 . . . . . . 3 . . . . . . . . . 5 1 2 1 Parts Repaired 7 | . 1 . . . 3 . . . 2 . . . . . . . . . . . . . . . . . . . 1 Time 242 | . 26 . . . 102 . . . 94 . . . . . . . . . . . . . . . . . . . 20 Parts Recycled . | . . . . . . . . . . . . . . . . . . . . . . . . . . . . . . Recycled Matter . | . . . . . . . . . . . . . . . . . . . . . . . . . . . . . . Retrieved Matter . | . . . . . . . . . . . . . . . . . . . . . . . . . . . . . . Retrieved Components 19 | . 10 . . . . . . . 6 . . . . . . . . . . . . . . . . 1 2 . . Parts Scanalyzed . | . . . . . . . . . . . . . . . . . . . . . . . . . . . . . . Part Schematics Acquired . | . . . . . . . . . . . . . . . . . . . . . . . . . . . . . . Parts Damaged . | . . . . . . . . . . . . . . . . . . . . . . . . . . . . . . Bothacking | -11 -10 -10 -10 -9 -8 -8 -8 -8 -7 -7 -7 -7 -7 -7 -6 -6 -6 -6 -6 -6 -5 -5 -5 -5 -4 -4 -3 -2 -1 ------------ Run | Yrd Mat Min Exi Min Mat Gar Mat Gar Fac Gar Fac Low Low Zio Pro Fac Ext Cet Arc Hub Fac Upp Upp War Pro Fac Res Res Acc Used RIF Installer . | . . . . . . . . . . . . . . . . . . . . . . . . . . . . . . Robots Hacked . | . . . . . . . . . . . . . . . . . . . . . . . . . . . . . . Non-combat . | . . . . . . . . . . . . . . . . . . . . . . . . . . . . . . Combat . | . . . . . . . . . . . . . . . . . . . . . . . . . . . . . . Robot Hacks Applied . | . . . . . . . . . . . . . . . . . . . . . . . . . . . . . . Relay Couplers Released 38 | . . . . . . 7 . 15 . 8 . . . . . . . . . . . . . . . . 4 4 . Machine Destruction 38 | . . . . . . 7 . 15 . 8 . . . . . . . . . . . . . . . . 4 4 . Fabnet Peak Effective % . | . . . . . . . . . . . . . . . . . . . . . . . . . . . . . . Robots Rewired 20 | . . . . . . . . 9 . . . . . . 2 1 2 . . 1 . . . 5 . . . . . Allies Hacked 1 | . . . . . . . . . . . . . . . . . . . . . 1 . . . . . . . . Hacks Repelled . | . . . . . . . . . . . . . . . . . . . . . . . . . . . . . . Allies | -11 -10 -10 -10 -9 -8 -8 -8 -8 -7 -7 -7 -7 -7 -7 -6 -6 -6 -6 -6 -6 -5 -5 -5 -5 -4 -4 -3 -2 -1 -------- Run | Yrd Mat Min Exi Min Mat Gar Mat Gar Fac Gar Fac Low Low Zio Pro Fac Ext Cet Arc Hub Fac Upp Upp War Pro Fac Res Res Acc Total Allies 46 | . . 1 . 3 . . 2 9 . . . . . 5 2 1 10 5 . 1 2 . . 5 . . . . . Largest Group 10 | . . 1 . 3 3 . 2 8 2 . . . . 5 6 1 10 10 7 6 2 . . 5 . . . . . Highest-Rated Group 642 | . . 31 . 40 40 . 32 127 39 . . . . 163 191 20 395 642 642 496 187 . . 271 . . . . . Highest-Rated Ally 159 | . . 31 . 16 16 . 16 21 21 . . . . 39 39 20 159 153 146 96 96 . . 68 . . . . . Initial Warlord ECA Mod 24 | . . . . . . . 8 8 16 16 24 24 24 24 23 23 21 21 21 21 19 18 18 18 17 17 16 15 14 Warlord Squad Rendezvous 4 | . . . . . . . . . . . . . . . . 2 . . . 1 1 . . . . . . . . Muscle 1 | . . . . . . . . . . . . . . . . 1 . . . . . . . . . . . . . Ranger 1 | . . . . . . . . . . . . . . . . . . . . . 1 . . . . . . . . Pyro 1 | . . . . . . . . . . . . . . . . 1 . . . . . . . . . . . . . Ghost 1 | . . . . . . . . . . . . . . . . . . . . 1 . . . . . . . . . Total Orders 8 | . . . . . 2 . . 2 . . . . . . . . . 2 . . . . . 2 . . . . . STAY 3 | . . . . . 1 . . 1 . . . . . . . . . . . . . . . 1 . . . . . FOLLOW 5 | . . . . . 1 . . 1 . . . . . . . . . 2 . . . . . 1 . . . . . Ally Attacks 397 | . . . . 12 8 . 9 75 3 . . . . . 59 2 70 47 10 48 23 . . 31 . . . . . Total Damage 9706 | . . . . 121 71 . 107 1098 59 . . . . . 910 79 1438 1229 334 1771 1040 . . 1449 . . . . . Kills 69 | . . . . 3 . . 2 13 1 . . . . . 7 . 8 8 4 7 3 . . 13 . . . . . Allies Corrupted 5 | . . . . . . . . . . . . . . . . . . . . 1 4 . . . . . . . . Allies Melted 3 | . . . . . . . . . . . . . . . . . . . . . . . . 1 . . . 2 . Intel | -11 -10 -10 -10 -9 -8 -8 -8 -8 -7 -7 -7 -7 -7 -7 -6 -6 -6 -6 -6 -6 -5 -5 -5 -5 -4 -4 -3 -2 -1 ------- Run | Yrd Mat Min Exi Min Mat Gar Mat Gar Fac Gar Fac Low Low Zio Pro Fac Ext Cet Arc Hub Fac Upp Upp War Pro Fac Res Res Acc Active Infowar (turns) 7506 | 15 1315 338 1005 850 . . . . . . 28 265 269 708 227 149 . 286 . 1 61 127 194 148 . 848 380 292 . Optics 1170 | . . . . . . . . . . . . . . . . . . 286 . . . . . 133 . 751 . . . Sensors 1 | . . . . . . . . . . . . . . . . . . . . . 1 . . . . . . . . Terrain 816 | . . . . 816 . . . . . . . . . . . . . . . . . . . . . . . . . Structural 1 | . . . . . . . . . . . . . . . . . . . . 1 . . . . . . . . . Traps 1 | . . . . . . . . . . . . . . . . . . . . . . . . . . 1 . . . Seismic 4353 | 15 1315 338 1005 34 . . . . . . 28 265 269 708 227 149 . . . . . . . . . . . . . Machine Analysis 50 | . . . . . . . . . . . . . . . . . . . . . . . . . . . 6 44 . Jamming 1434 | . . . . . . . . . . . . . . . . . . . . . 60 127 194 15 . 366 380 292 . Robot Analysis Total 6 | . 2 . . . . . 1 . . . . . . . . . 1 . . . 2 . . . . . . . . Derelict Logs Recovered 12 | . . . . 2 . . . . . . . 1 . 2 1 . . . . . . 2 2 . 2 . . . . Drone Launches . | . . . . . . . . . . . . . . . . . . . . . . . . . . . . . . Drone Recoveries . | . . . . . . . . . . . . . . . . . . . . . . . . . . . . . . Exploration | -11 -10 -10 -10 -9 -8 -8 -8 -8 -7 -7 -7 -7 -7 -7 -6 -6 -6 -6 -6 -6 -5 -5 -5 -5 -4 -4 -3 -2 -1 ------------- Run | Yrd Mat Min Exi Min Mat Gar Mat Gar Fac Gar Fac Low Low Zio Pro Fac Ext Cet Arc Hub Fac Upp Upp War Pro Fac Res Res Acc Turns Passed 27908 | 82 1315 338 1005 1115 2479 2866 737 2808 1567 910 463 304 318 708 374 647 1310 375 592 879 1437 127 194 907 114 849 479 1505 1104 Spaces Moved 28681 | 60 785 188 491 451 890 1024 310 1056 2476 942 725 407 429 1257 420 1164 1158 186 241 468 779 453 614 1620 399 1540 1354 4274 2520 Core 3 | 3 . . . . . . . . . . . . . . . . . . . . . . . . . . . . . Treads 7087 | . 680 188 491 451 890 1024 310 1056 11 . . . . . . . 397 186 241 468 694 . . . . . . . . Legs . | . . . . . . . . . . . . . . . . . . . . . . . . . . . . . . Wheels 162 | 57 105 . . . . . . . . . . . . . . . . . . . . . . . . . . . . Hover . | . . . . . . . . . . . . . . . . . . . . . . . . . . . . . . Flight 21429 | . . . . . . . . . 2465 942 725 407 429 1257 420 1164 761 . . . 85 453 614 1620 399 1540 1354 4274 2520 Fastest Speed 14 | 50 90 160 160 240 240 240 200 208 50 50 50 50 50 50 50 39 27 160 160 160 25 15 17 14 21 20 21 28 19 Average Speed 75 | 87 150 160 202 240 240 240 209 208 50 50 50 50 50 50 50 39 81 160 160 160 148 24 24 21 21 23 25 29 28 Slowest Speed 320 | 90 240 160 240 320 240 240 240 221 221 50 50 50 50 50 50 121 200 160 160 160 163 25 25 95 25 95 103 108 106 Overloaded Moves 578 | . . . . . . . . . . . . . . . . . . . . . . 9 233 150 . . 82 . 104 Propulsion Burnouts . | . . . . . . . . . . . . . . . . . . . . . . . . . . . . . . Robots Hopped 182 | . . . . . . . . . 45 . 13 . 2 . . 8 6 . . . 1 . . 1 . 5 15 52 34 Potential Cave-ins 21 | . . . . . . . . . . . . . . . . . . . . . . . . 15 . . . 6 . Cave-ins Triggered 1 | . . . . . . . . . . . . . . . . . . . . . . . . 1 . . . . . Exploration Rate (%) 60 | 4 94 46 72 90 59 84 28 87 67 80 14 47 55 86 70 29 94 64 96 38 16 68 75 92 54 34 30 79 49 Regions Visited 29 Branch Regions 15 Pre-discovered Areas 8 | . 1 . 1 1 . . . . . . . 1 . . . . . . . . . 1 1 . . 2 . . . Known Exits Taken 9 | . . . 1 . 1 . 1 . 1 . 1 . . . . 1 . . . . . . . . . 1 1 1 . Unknown Exits Taken 17 | 1 1 1 . 1 . . . . . . . 1 1 1 1 . 1 1 1 1 1 1 1 1 1 . . . . Scrap Searched 19 | . . 1 . 2 . . . . . . . 4 2 4 . . . . . . . 3 2 . 1 . . . . Spaces Dug 227 | . . . . . . 33 . 6 17 41 12 . 1 . 1 12 21 . . . 5 . 1 . . 9 22 . 46 Terrain Destroyed 1083 | . . . . . . 131 . 79 64 232 12 1 1 . 1 13 43 3 46 18 48 . 9 114 53 12 22 70 111 Melee 95 | . . . . . . . . 6 14 37 12 . 1 . 1 10 . . . . . . 1 . . 9 4 . . Projectile 197 | . . . . . . 3 . 3 . 4 . 1 . . . 3 3 3 46 18 48 . 8 21 1 . . 30 5 AOE 789 | . . . . . . 128 . 70 50 191 . . . . . . 40 . . . . . . 93 52 3 18 40 104 Terrain Rammed . | . . . . . . . . . . . . . . . . . . . . . . . . . . . . . . Walls Destroyed . | . . . . . . . . . . . . . . . . . . . . . . . . . . . . . . Machines Disabled . | . . . . . . . . . . . . . . . . . . . . . . . . . . . . . . Actions | -11 -10 -10 -10 -9 -8 -8 -8 -8 -7 -7 -7 -7 -7 -7 -6 -6 -6 -6 -6 -6 -5 -5 -5 -5 -4 -4 -3 -2 -1 --------- Run | Yrd Mat Min Exi Min Mat Gar Mat Gar Fac Gar Fac Low Low Zio Pro Fac Ext Cet Arc Hub Fac Upp Upp War Pro Fac Res Res Acc Total 32765 | 80 865 219 505 475 1121 1275 376 1421 2609 1234 768 457 488 1331 560 1280 1448 233 359 562 943 467 639 2062 414 1983 1436 4416 2739 Wait 1902 | 3 21 22 . . 76 93 31 112 18 150 16 4 23 72 123 14 166 5 71 41 53 7 8 241 1 355 19 11 146 Move 28318 | 59 784 187 490 450 890 1023 309 1055 2390 940 699 406 424 1256 419 1148 1145 185 240 467 776 452 613 1616 398 1529 1325 4191 2452 Hop 151 | . . . . . . . . . 41 . 12 . 2 . . 7 6 . . . 1 . . 1 . 5 13 30 33 Pick Up 201 | 6 16 2 6 8 33 5 6 5 12 5 3 2 2 . . 8 3 4 1 8 6 2 . 5 2 8 6 32 5 Fast Attach 152 | 6 1 . . . 4 . 1 1 11 1 2 3 5 . . 5 6 4 6 3 8 2 . 34 1 16 10 20 2 Attach 76 | . 2 . . . 7 2 . 4 4 2 . . . . . 3 6 1 . 1 9 1 1 5 3 4 4 9 8 Detach 52 | . . . . . . . . 1 . . . . . . . 1 5 . . 1 10 1 1 3 1 4 3 14 7 Swap 260 | . 3 . 3 6 18 27 6 11 15 4 6 5 7 . 2 19 16 11 2 9 6 . 1 19 . 22 14 12 16 Drop 296 | . 6 2 6 7 35 8 9 4 26 5 4 5 6 . . 14 4 10 4 6 14 2 1 29 . 22 19 42 6 Fire 856 | 6 26 3 . 4 56 84 13 105 64 33 10 26 18 . 9 22 43 13 35 13 59 . 13 58 8 9 7 55 64 Melee 188 | . . . . . . 11 . 38 14 66 16 . 1 3 1 12 . . . . . . 1 . . 9 16 . . Ram . | . . . . . . . . . . . . . . . . . . . . . . . . . . . . . . Kick . | . . . . . . . . . . . . . . . . . . . . . . . . . . . . . . Crush 19 | . 6 3 . . 2 . 1 . . . . . . . . . . . . 6 1 . . . . . . . . Escape Stasis 86 | . . . . . . 22 . 6 14 28 . . . . . . 15 . . . . . . 1 . . . . . Rewire 202 | . . . . . . . . 79 . . . . . . 6 27 33 . . 7 . . . 50 . . . . . Trap 6 | . . . . . . . . . . . . 6 . . . . . . . . . . . . . . . . . Miscellaneous . | . . . . . . . . . . . . . . . . . . . . . . . . . . . . . . Route ------- -11/Scrapyard -10/Materials (discovered 5 exits: *Mat x3 / [*Min] / Sub) -10/Mines (discovered 4 exits: Mat x2 / *Exi / *Sub) -10/Exiles (discovered 2 exits: *Min x2) -9/Mines (discovered 2 exits: *Mat x2) -8/Materials (discovered 4 exits: *Fac x2 / *Sto / Gar) -8/Garrison (discovered 3 exits: *Mat x3) -8/Materials (discovered 2 exits: Sto / Gar) -8/Garrison (discovered 2 exits: *Fac x2) -7/Factory (discovered 2 exits: *Fac / Gar) -7/Garrison (discovered 3 exits: *Fac x3) -7/Factory (discovered 2 exits: *Low x2) -7/Lower Caves -7/Lower Caves (discovered 2 exits: *Fac / [*Zio]) -7/Zion -6/Proximity Caves -6/Factory (discovered 5 exits: *Fac / Low x2 / *Ext x2) -6/Extension (discovered 2 exits: *Fac / *Cet) -6/Cetus (discovered 2 exits: *Fac / [*Arc]) -6/Archives (discovered 3 exits: *Fac / *Hub x2) -6/Hub_04(d) -5/Factory -5/Upper Caves -5/Upper Caves (discovered 2 exits: *Fac / *War) -5/Warlord -4/Proximity Caves -4/Factory (discovered 2 exits: *Res x2) -3/Research (discovered 3 exits: *Res x3) -2/Research (discovered 4 exits: *Acc x2 / [*Tes x2]) -1/Access (discovered 2 exits: [*Sur] / Com) To Epsilon Eridani History --------- Turn | Location | Event 23 | -11/Scrapyard | Discovered new exit (range 16) 83 | -11/Scrapyard | Entered Materials 133 | -10/Materials | Discovered new exit (range 16) 315 | -10/Materials | Build established: Mutant 646 | -10/Materials | Discovered new exit (range 8) 694 | -10/Materials | Loaded intel: 1 repair station location 731 | -10/Materials | Identified exit to Subcaves 731 | -10/Materials | Identified exit to Materials 777 | -10/Materials | Learned location of 1 exit from Storage 784 | -10/Materials | Learned location of 1 exit from Recycling 785 | -10/Materials | Learned location of 1 exit from Materials 1230 | -10/Materials | Repaired Lgt. Treads? 1398 | -10/Materials | Entered Mines 1416 | -10/Mines | Received a Mining Laser from a helpful Derelict 1473 | -10/Mines | Assembled infested the area 1499 | -10/Mines | Discovered exit to Subcaves (range 9) 1730 | -10/Mines | Discovered new exit (range 5) 1736 | -10/Mines | Entered Exiles 1737 | -10/Exiles | Identified exit to Mines 1776 | -10/Exiles | Met 8R-AWN 1804 | -10/Exiles | Met EX-HEX 1864 | -10/Exiles | Met EX-DEC 1872 | -10/Exiles | Learned location of Zion (-7) 1898 | -10/Exiles | Met EX-BIN 1920 | -10/Exiles | Aligned with FarCom system 1922 | -10/Exiles | Given EX-Vault access code 1960 | -10/Exiles | Opened EX-Vault 1977 | -10/Exiles | Found Flying Fortress v7 2008 | -10/Exiles | Warned to stay clear of 0b10 Research branches 2741 | -10/Exiles | Left Exiles lab with Flying Fortress v7 2741 | -10/Exiles | Entered Mines 2751 | -9/Mines | Assisted by bots powering up and referring to "LRC-V3" 3292 | -9/Mines | Build established: Scavenger-Skirmisher 3306 | -9/Mines | Discovered new exit (range 7) 3608 | -9/Mines | Learned Materials machine intel 3644 | -9/Mines | Discovered new exit (range 13) 3856 | -9/Mines | Entered Materials 3856 | -8/Materials | Accompanied by 3 allies 3856 | -8/Materials | Evolved 4 slots: Propulsion x1, Utility x1, Weapon x2 3857 | -8/Materials | Identified exit to Factory 3858 | -8/Materials | Loaded intel: 54 machine locations 4792 | -8/Materials | Repaired Imp. Heat Sink? 4906 | -8/Materials | Discovered exit to Factory (range 3) 5218 | -8/Materials | Build established: Skirmisher 5719 | -8/Materials | Central database locked down 5733 | -8/Materials | Discovered new exit (range 7) 6025 | -8/Materials | Repaired Lgt. Treads 6064 | -8/Materials | Repaired Minigun+? 6335 | -8/Materials | Identified exit to Garrison 6335 | -8/Materials | Entered Garrison 6531 | -8/Garrison | Build established: Scavenger-Skirmisher 6679 | -8/Garrison | Triggered checkpoint 6849 | -8/Garrison | Triggered checkpoint 7057 | -8/Garrison | Discovered new exit (range 15) 7883 | -8/Garrison | Triggered checkpoint 7929 | -8/Garrison | Discovered new exit (range 15) 8189 | -8/Garrison | Triggered checkpoint 8585 | -8/Garrison | Garrison Relay disabled 8696 | -8/Garrison | Discovered new exit (range 15) 9201 | -8/Garrison | Entered Materials 9601 | -8/Materials | First assault squad dispatched 9624 | -8/Materials | Identified exit to Storage 9855 | -8/Materials | Identified exit to Garrison 9904 | -8/Materials | Garrison activated, responded to threat 9938 | -8/Materials | Entered Garrison 9938 | -8/Garrison | Accompanied by 1 ally 10092 | -8/Garrison | Triggered checkpoint 10162 | -8/Garrison | Garrison Relay disabled 10206 | -8/Garrison | Triggered checkpoint 10653 | -8/Garrison | Core integrity fell below 50% 10706 | -8/Garrison | Triggered checkpoint 10794 | -8/Garrison | Triggered checkpoint 10944 | -8/Garrison | Garrison Relay disabled 10970 | -8/Garrison | Triggered checkpoint 11018 | -8/Garrison | Garrison Relay disabled 11485 | -8/Garrison | Build established: Commander-Skirmisher 11500 | -8/Garrison | Triggered checkpoint 11510 | -8/Garrison | Triggered checkpoint 11528 | -8/Garrison | Triggered checkpoint 11563 | -8/Garrison | Lost 4 allies 11684 | -8/Garrison | Garrison Relay disabled 11739 | -8/Garrison | Discovered exit to Factory (range 11) 11827 | -8/Garrison | Build established: Scavenger-Skirmisher 11914 | -8/Garrison | Triggered checkpoint 12039 | -8/Garrison | Discovered exit to Factory (range 12) 12372 | -8/Garrison | Phase Generator disabled 12658 | -8/Garrison | P-60 Hacker assimilated allied Commando 3b 12746 | -8/Garrison | Entered Factory 12746 | -7/Factory | Accompanied by 2 allies 12746 | -7/Factory | Evolved 2 slots: Propulsion x1, Utility x1 12860 | -7/Factory | Repaired Lyr. Medium Armor Plating? 13146 | -7/Factory | First assault squad dispatched 13329 | -7/Factory | Build established: Skirmisher 13851 | -7/Factory | Fabricated Imp. Reaction Control System (x2) 13920 | -7/Factory | Repaired Gauss Rifle? 14087 | -7/Factory | Discovered new exit (range 16) 14313 | -7/Factory | Identified exit to Garrison 14313 | -7/Factory | Entered Garrison 14506 | -7/Garrison | Triggered checkpoint 14587 | -7/Garrison | Triggered checkpoint 14704 | -7/Garrison | Garrison Relay disabled 14753 | -7/Garrison | Triggered checkpoint 14827 | -7/Garrison | Discovered new exit (range 3) 14921 | -7/Garrison | Triggered checkpoint 14939 | -7/Garrison | Discovered new exit (range 10) 14998 | -7/Garrison | Garrison Relay disabled 15020 | -7/Garrison | Phase Generator disabled 15025 | -7/Garrison | Attempted to access garrison exit controls, blocked by remote lockdown 15175 | -7/Garrison | Triggered checkpoint 15208 | -7/Garrison | Discovered new exit (range 9) 15223 | -7/Garrison | Entered Factory 15322 | -7/Factory | Discovered new exit (range 5) 15473 | -7/Factory | Build established: Scavenger-Skirmisher 15490 | -7/Factory | Identified exit to Lower Caves 15623 | -7/Factory | First assault squad dispatched 15686 | -7/Factory | Entered Lower Caves 15694 | -7/Lower Caves | Met a Warlord Commander 15695 | -7/Lower Caves | Learned location of Warlord (-5) 15696 | -7/Lower Caves | Warlord Commander delivered Encrypted Comm Array 15701 | -7/Lower Caves | Found Encrypted Comm Array 15952 | -7/Lower Caves | Learned Factory machine intel 15974 | -7/Lower Caves | Discovered new exit (range 14) 15979 | -7/Lower Caves | Build established: Scavenger-Gunner 15990 | -7/Lower Caves | Entered another Lower Caves area 16036 | -7/Lower Caves | Discovered new exit (range 5) 16174 | -7/Lower Caves | Found Imp. Powered Armor 16302 | -7/Lower Caves | Discovered new exit (range 5) 16308 | -7/Lower Caves | Entered Zion 16329 | -7/Zion | System corruption cleaned by Quarantine Array 16361 | -7/Zion | Build established: Gunner 16444 | -7/Zion | Learned Factory emergency access door positions 16460 | -7/Zion | Learned Factory interactive machine intel 16518 | -7/Zion | Rebuked by Imprinter 16641 | -7/Zion | Gained Derelict followers 16988 | -7/Zion | Discovered new exit (range 11) 17016 | -7/Zion | Entered Proximity Caves 17016 | -6/Proximity Caves | Accompanied by 5 allies 17061 | -6/Proximity Caves | Learned Factory trap positions 17218 | -6/Proximity Caves | Attracted the attention of an 0b10 outpost 17371 | -6/Proximity Caves | Spotted B-75 Beast 17387 | -6/Proximity Caves | Discovered new exit (range 7) 17390 | -6/Proximity Caves | Entered Factory 17390 | -6/Factory | Evolved 2 slots: Power x1, Propulsion x1 17391 | -6/Factory | Loaded intel: 94 trap records 17393 | -6/Factory | Loaded intel: 298 machine locations 17394 | -6/Factory | Loaded intel: 56 interactive machine locations 17406 | -6/Factory | Identified exit to Lower Caves 17406 | -6/Factory | Identified exit to Extension 17569 | -6/Factory | Discovered new exit (range 9) 17900 | -6/Factory | Joined by Warlord Pyro squad 18023 | -6/Factory | Joined by Warlord Muscle squad 18037 | -6/Factory | Entered Extension 18311 | -6/Extension | Rescued A7 18347 | -6/Extension | Rescued a captive Derelict 18578 | -6/Extension | Spotted B-75 Beast 18593 | -6/Extension | Destroyed B-75 Beast 18613 | -6/Extension | Spotted B-75 Beast 18632 | -6/Extension | Allies destroyed B-75 Beast 18729 | -6/Extension | System corruption reached 10% 18904 | -6/Extension | Discovered new exit (range 15) 18905 | -6/Extension | Discovered new exit (range 15) 18981 | -6/Extension | Build established: Scavenger-Skirmisher 18999 | -6/Extension | Rescued a captive Derelict 19067 | -6/Extension | Rescued a captive Derelict 19077 | -6/Extension | Rescued a captive Derelict 19097 | -6/Extension | Rescued a captive Derelict 19131 | -6/Extension | Rescued a captive Derelict 19136 | -6/Extension | Rescued a captive Derelict 19347 | -6/Extension | Entered Cetus 19347 | -6/Cetus | Accompanied by 10 allies (A7) 19352 | -6/Cetus | Acquired a Cetus Manufacturing Module code from A7 19367 | -6/Cetus | Spotted Cetus Guard 19367 | -6/Cetus | Spotted Cetus Guard 19367 | -6/Cetus | Spotted Cetus Guard 19367 | -6/Cetus | Spotted Cetus Guard 19385 | -6/Cetus | Allies destroyed Cetus Guard 19392 | -6/Cetus | Allies destroyed Cetus Guard 19400 | -6/Cetus | Allies destroyed Cetus Guard 19401 | -6/Cetus | Allies destroyed Cetus Guard 19426 | -6/Cetus | Lost 7 allies 19540 | -6/Cetus | Started Cetus Manufacturing Module 19550 | -6/Cetus | Discovered new exit (range 22) 19565 | -6/Cetus | Manufactured an Enhanced Grunt 19584 | -6/Cetus | Spotted Cetus Guard 19585 | -6/Cetus | Spotted Cetus Guard 19585 | -6/Cetus | Spotted Cetus Guard 19588 | -6/Cetus | Spotted Cetus Guard 19590 | -6/Cetus | Manufactured an Enhanced Grunt 19594 | -6/Cetus | Destroyed Cetus Guard 19596 | -6/Cetus | Allies destroyed Cetus Guard 19597 | -6/Cetus | Destroyed Cetus Guard 19611 | -6/Cetus | Allies destroyed Cetus Guard 19613 | -6/Cetus | Discovered new exit (range 21) 19615 | -6/Cetus | Manufactured an Enhanced Grunt 19630 | -6/Cetus | Met Revision 17 19640 | -6/Cetus | Manufactured an Enhanced Grunt 19665 | -6/Cetus | Manufactured an Enhanced Grunt 19722 | -6/Cetus | Entered Archives 19722 | -6/Archives | Accompanied by 7 allies (A7) 19745 | -6/Archives | Build established: Scavenger-Tank 19809 | -6/Archives | Discovered new exit (range 16) 19878 | -6/Archives | Discovered new exit (range 16) 19918 | -6/Archives | Discovered new exit (range 16) 20314 | -6/Archives | Entered Hub_04(d) 20314 | -6/Hub_04(d) | Accompanied by 6 allies 20374 | -6/Hub_04(d) | Discovered new exit (range 15) 20591 | -6/Hub_04(d) | Joined by Warlord Ghost squad 20800 | -6/Hub_04(d) | Lost 3 allies 21193 | -6/Hub_04(d) | Entered Factory 21193 | -5/Factory | Accompanied by 2 allies 21193 | -5/Factory | Evolved 2 slots: Propulsion x1, Weapon x1 21603 | -5/Factory | Found Prototype Processor 21603 | -5/Factory | Identified Exp. Targeting Computer 22102 | -5/Factory | Discovered new exit (range 10) 22298 | -5/Factory | Garrison activated, responded to threat 22393 | -5/Factory | Joined by Warlord Ranger squad 22406 | -5/Factory | Lost 3 parts (1p2w) 22630 | -5/Factory | Entered Upper Caves 22651 | -5/Upper Caves | Learned location of Armory (-4) 22683 | -5/Upper Caves | Encountered a Warlord checkpoint 22710 | -5/Upper Caves | Learned Factory stockpile data 22739 | -5/Upper Caves | Discovered new exit (range 5) 22757 | -5/Upper Caves | Entered another Upper Caves area 22772 | -5/Upper Caves | Discovered new exit (range 7) 22815 | -5/Upper Caves | Entered a destroyed Warlord outpost 22938 | -5/Upper Caves | Learned location of 1 exit from Factory 22948 | -5/Upper Caves | Discovered new exit (range 15) 22951 | -5/Upper Caves | Entered Warlord 22959 | -5/Warlord | System corruption cleaned by Quarantine Array 22972 | -5/Warlord | Found Prototype Device 22972 | -5/Warlord | Identified Minesniffer Drone Bay 23038 | -5/Warlord | Found Prototype Processor 23038 | -5/Warlord | Identified Exp. Core Analyzer 23040 | -5/Warlord | Found Prototype Device 23040 | -5/Warlord | Identified Thermal Barrier 23043 | -5/Warlord | Found Prototype Reactor 23043 | -5/Warlord | Identified Vortex Chain Reactor 23068 | -5/Warlord | Visited the Vortex Lab 23069 | -5/Warlord | Found Prototype Launcher 23069 | -5/Warlord | Identified Vortex Catalyst Activator 23072 | -5/Warlord | Found Prototype Energy Gun 23072 | -5/Warlord | Identified Vortex Shotgun 23083 | -5/Warlord | Warlord's base attacked by MAIN.C 23200 | -5/Warlord | Met Warlord 23354 | -5/Warlord | Warlord forces counterattacked 23383 | -5/Warlord | Spotted Executioner 23383 | -5/Warlord | Spotted Executioner 23393 | -5/Warlord | Destroyed 10 combat bots 23399 | -5/Warlord | Destroyed Executioner 23406 | -5/Warlord | Destroyed Executioner 23415 | -5/Warlord | Found Exp. Targeting Computer 23447 | -5/Warlord | Lost 3 allies 23483 | -5/Warlord | Spotted Executioner 23483 | -5/Warlord | Spotted Executioner 23483 | -5/Warlord | Spotted Striker 23541 | -5/Warlord | Lost 15 allies 23551 | -5/Warlord | Found Prototype Device 23551 | -5/Warlord | Identified Adv. Kinecellerator 23553 | -5/Warlord | Crushed by falling debris 23583 | -5/Warlord | Spotted Striker 23591 | -5/Warlord | Spotted Striker 23592 | -5/Warlord | Destroyed Striker 23600 | -5/Warlord | Build established: Scavenger-Sprinter 23624 | -5/Warlord | Lost 4 allies 23684 | -5/Warlord | Spotted Executioner 23686 | -5/Warlord | P-80 Master assimilated allied VA-TJ4(M) 23704 | -5/Warlord | Spotted Striker 23723 | -5/Warlord | System corruption reached 10% 23733 | -5/Warlord | Lost 3 parts (2p1w) 23758 | -5/Warlord | Warlord base infiltrated, sounded retreat 23768 | -5/Warlord | Lost 11 allies 23839 | -5/Warlord | Discovered new exit (range 13) 23839 | -5/Warlord | Spotted Executioner 23848 | -5/Warlord | Spotted Striker 23858 | -5/Warlord | Entered Proximity Caves 23883 | -4/Proximity Caves | Learned Research emergency access door positions 23884 | -4/Proximity Caves | Learned Research security intel 23943 | -4/Proximity Caves | Lost 4 parts (1p2n1w) 23965 | -4/Proximity Caves | Discovered new exit (range 3) 23972 | -4/Proximity Caves | Entered Factory 23972 | -4/Factory | Evolved 2 slots: Utility x2 23973 | -4/Factory | Identified exit to Research 24652 | -4/Factory | Discovered exit to Research (range 11) 24742 | -4/Factory | Learned Research trap positions 24773 | -4/Factory | Learned location of Quarantine (-3) 24792 | -4/Factory | Learned location of 1 exit from Proximity Caves 24800 | -4/Factory | Learned Quarantine stockpile data 24820 | -4/Factory | Learned Quarantine garrison access intel 24821 | -4/Factory | Entered Research 24821 | -3/Research | Evolved 2 slots: Propulsion x1, Utility x1 24822 | -3/Research | Loaded intel: 76 trap records 24839 | -3/Research | Found Prototype Processor 24839 | -3/Research | Identified Spectral Analyzer 25021 | -3/Research | Revision forces began assault on 0b10 25023 | -3/Research | Met up with Revision 17++ 25169 | -3/Research | System corruption reached 10% 25184 | -3/Research | Identified exit to Research 25189 | -3/Research | Lost 3 allies 25192 | -3/Research | Central database locked down 25275 | -3/Research | Found Prototype Processor 25275 | -3/Research | Identified Exp. Melee Analysis Suite 25300 | -3/Research | Entered another Research area 25300 | -2/Research | Warlord forces began assault on 0b10 25300 | -2/Research | Evolved 2 slots: Utility x2 25325 | -2/Research | Distinguished unit "Lobotomizers" dispatched to help 25325 | -2/Research | Distinguished unit "Magnificent Bastards" dispatched to help 25369 | -2/Research | Lost 3 allies 25389 | -2/Research | Met up with Warlord 25403 | -2/Research | Found Prototype Launcher 25403 | -2/Research | Identified Ragnarok Missile Launcher 25406 | -2/Research | Found Ragnarok Missile Launcher 25410 | -2/Research | Research machine network offline 25440 | -2/Research | Discovered new exit (range 7) 25747 | -2/Research | Spotted Executioner 25747 | -2/Research | Spotted Executioner 25787 | -2/Research | Lost 4 allies 25808 | -2/Research | Identified exit to Access 25830 | -2/Research | Discovered new exit (range 15) 25858 | -2/Research | Found Prototype Device 25858 | -2/Research | Identified Femtoactuators 25909 | -2/Research | Found Exp. Core Analyzer 25964 | -2/Research | Borebot progress halted 26030 | -2/Research | Borebot progress halted 26177 | -2/Research | Found Exp. Core Analyzer 26226 | -2/Research | Discovered exit to Access (range 15) 26266 | -2/Research | Borebot progress halted 26360 | -2/Research | Spotted Striker 26440 | -2/Research | Spotted Executioner 26475 | -2/Research | Lost 3 allies 26530 | -2/Research | Spotted Executioner 26530 | -2/Research | Spotted Executioner 26601 | -2/Research | Found Exp. Targeting Computer 26640 | -2/Research | Spotted Striker 26643 | -2/Research | Spotted Striker 26643 | -2/Research | Destroyed Striker 26649 | -2/Research | Destroyed Striker 26702 | -2/Research | Lost 3 allies 26712 | -2/Research | Discovered new exit (range 15) 26777 | -2/Research | Spotted Striker 26781 | -2/Research | Destroyed Striker 26804 | -2/Research | Given Cave Seal Controls access code 26805 | -2/Research | Entered Access 26805 | -1/Access | Evolved 2 slots: Propulsion x1, Weapon x1 27153 | -1/Access | Identified exit to Command 27305 | -1/Access | First assault squad dispatched 27310 | -1/Access | Lost 3 allies 27795 | -1/Access | Repaired Field Propulsion Array+ 27822 | -1/Access | Spotted B-99 Colossus 27908 | -1/Access | Discovered new exit (range 6) 27909 | *** | Escaped! Last Messages --------------- detected, Programmers report to Access Zone 5A. 27844_ U-05 Engineer works on Sealed Freight Elevator. 27845_ Connecting with Garrison Access... 27846_ U-05 Engineer works on Sealed Freight Elevator. 27847_ K-01 Serf collects debris. 27860_ System corrupted: IFF burst signal emitted. 27877_ System corrupted: Matter fused (-8). 27907_ Connecting with Terminal... >>Open(Door) Sealed Barrier opened. Feedback: System corruption (+1%). 27907_ ALERT: Suspicious activity at Terminal A001. Dispatching Investigation squad. 27908_ The Access Shell folds into the floor. 27908_ EXIT=FOUND [Achievement: Collector] Map ----- +----------------------------------------------------+ | ######### #????????????????? ?????????? | | #????????????????? ?????????? | | #????????????????? #????????? | | ########### #????????????????? #????????? | | #?????????###### #????????????????? #????????? | | #??????#####???# #????????????????? ????????? | | +###????# ! ??# #????????????????# ????????? | | #????# ### #????????????????# #????????? | | #????+ " #????????????????+ #????????? | | #????# ### #????????????????# #????????? | | #????#= ??# #????????????????# #????????? | | #????#####???# #????????????????# #????????? | | #????????????# #????????????????# #????????? | | #????????????# ################## +????????? | | #????????????# #????????? | | #????????????###################### +????????? | | ########?????????????????????????????# #????????? | | #?????????????????????????????# #????????? | | #?????????????????????????????# #????????? | | #?????????????????????###?????# #????????? | | #????????????########## ####### #????????? | | ### #????????????" #????????? | | ??? #??????BB????" #????????? | | ???? ### BB????" #????????? | | ### ?????" #????????? | | ?????" "@ #????????? | | ?????" "" #????????? | | ### ?????" #????????? | | ??????#### BB????" #????????? | | ?????????? ?BB????" """ """ #????????? | | ????????????????????" """T""" #????????? | | ????????????????????########## ####### #????????? | | ?????????????????????????????###?????? #????????? | | ?????????????????????????????????????? #????????? | | ?????????????????????????????????????? #????????? | | ?????????????????????????????????????? #????????? | | ?????????????????????????????????????? ?????????? | | ?????????????????????????????????????????????????? | | ?????????????????????????????????????????????????? | | ?????????????????????????????????????????????????? | | ?????????????????????????????????????????????????? | | ?????????????????????????????????????????????????? | | ?????????????????????????????????????????????????? | | ?????????????????????????????????????????????????? | | ?????????????????????????????????????????????????? | | ?????????????????????????????????????????????????? | | ?????????????????????????????????????????????????? | | ?????????????????????????????????????????????????? | | ?????????????????????????????????????????????????? | | ?????????????????????????????????????????????????? | +----------------------------------------------------+ Best States ------------- Heat Dissipation 78 Energy Generation 63 Energy Capacity 565 Matter Stores 300 Matter Capacity 300 Sight Range 23 Terrain Scan Range 16 Terrain Scan Density 210 Jamming Range 16 Power Amplification 40 Additional Mass Support 16 Armor Coverage 450 Propulsion Shielding 66 Weapon Cycling 25 Evasion (%) 76 Targeting Accuracy 12 Target Analysis 8 Core Analysis 8 Armor Integrity Analysis 30 Recoil Reduction 6 Kinecelleration 50 Salvage Targeting 4 Offensive Hacking 14 Item Schematics ----------------- Cld. VTOL Module | -6/Extension | Hacked Robot Schematics ------------------ None Fabricated ------------ Imp. Reaction Control System | x2 | -7/Factory | Preloaded Repaired ---------- Lgt. Treads | 61% | -10/Materials Imp. Heat Sink | 5% | -8/Materials Lgt. Treads | 22% | -8/Materials Minigun | 29% | -8/Materials Lyr. Medium Armor Plating | 10% | -7/Factory Gauss Rifle | 53% | -7/Factory Field Propulsion Array | 6% | -1/Access Studied --------- Minigun | -8/Materials | Hacked Lgt. Treads | -8/Materials | Hacked Lgt. Nuclear Core | -8/Materials | Hacked Coil Gun | -7/Factory | Hacked Gauss Rifle | -6/Factory | Hacked Lgt. Angular Momentum Engine | -6/Factory | Hacked Hvy. Rocket Launcher | -6/Factory | Hacked Autogun | -4/Factory | Hacked Lgt. Antimatter Reactor | -4/Factory | Hacked Field Propulsion Array | -4/Factory | Hacked Cesium-ion Thruster | -4/Factory | Hacked Xenon Bombardment Thruster | -4/Factory | Hacked Impulse Thruster | -3/Research | Hacked Hyp. Railgun | -2/Research | Hacked Railgun | -2/Research | Hacked Impulse Thruster Array | -1/Access | Hacked Alien Tech Used ----------------- None Achievements -------------- Bullet Installation Collector Deadly Precision Challenges ------------ None Game ------ Seed HeavyWeaponsGuard Manual? 0 Play Time 06:02:41 Cumulative 273.5 hours Start 2025.12.15 @ 16:35:55 End 2025.12.16 @ 02:28:16 Sessions 5 Manual Loads 0 Difficulty Rogue Special Mode None Game No. 163 Rogue 159 Adventurer 4 Explorer 0 Win Type 0 Total 8 Types 7/0/1/0/0/0/0/0/0/0 Lore% 86 Gallery% 75 Achievement% 49 Wizard Run 0 Options --------- Layout 2 ASCII 0 Keyboard 1 Movement Vi Keybinds 1 Fullscreen 2 Font 24/Smallcaps Map View 50x44 Zoom Use 0% Tactical HUD 1 Map Filters NONE Filters NONE Steam 1 RUN: bc012c7f-4ccf-4f87-a069-2133eee90c58